Workbook

Sheet Zał.1
E1: Załącznik nr 1
E2: do uchwały Nr 96/XIII/2025
E3: Rady Dzielnicy Białołęka m.st. Warszawy
E4: z dnia 16 kwietnia 2025 r.
A5: ŚRODKI PRZEZNACZONE DO DYSPOZYCJI DZIELNICY BIAŁOŁĘKA NA REALIZACJĘ INWESTYCJI I ZADAŃ WŁASNYCH
A8: Dział | B8: Rozdział | C8: Paragraf | D8: Wyszczególnienie | E8: Dodatkowe środki fin. przeznaczone do dyspozycji Dzielnicy
E9: Plan dochodów przed zmianą | F9: Zmniejszenia | G9: Zwiększenia | H9: Plan dochodów po zmianie
A10: 1 | B10: 2 | C10: 3 | D10: 4 | E10: 5 | F10: 6 | G10: 7 | H10: 8
D11: OGÓŁEM | E11: 647996032 | F11: 328940 | G11: 595849 | H11: =E11-F11+G11 -> 648262941
D12: Dodatkowe środki do dyspozycji dzielnicy | E12: 608431830 | F12: 328940 | G12: 65849 | H12: =E12-F12+G12 -> 608168739

Sheet dochody
K1: Załącznik nr 1a
K2: do uchwały Nr XIII/96/2025
K3: Rady Dzielnicy Białołęka m.st. Warszawy
K4: z dnia 16 kwietnia 2025 r.
A7: WNIOSEK W SPRAWIE ZMIAN W PLANIE DOCHODÓW
M8: w zł
A9: Stanowisko finansowe | C9: Pozycje finansowe | F9: Obszar funkcjonalny | G9: Program budżetowy | I9: Plan wg stanu na dzień | J9: Zaangażowanie */ Wykonanie * wg stanu na dzień | K9: Proponowane zmiany | M9: Plan po zmianach
A10: Nazwa dysponenta ** | B10: Kod | C10: Dział | D10: Rozdział | E10: § | F10: Kod | G10: Nazwa | H10: Kod | K10: zmniejszenia | L10: zwiększenia
A14: Dzielnicowe Biuro Finansów Oświaty | B14: J.02.000 | C14: 854.85412.D0830+000 | F14: GMMW | G14: Wpływy z usług - pozostałe | H14: DWB/6/WU/PO | I14: 0 | K14: 0 | L14: 230000 | M14: =I14-K14+L14 -> 230000
A15: Białołęcki Ośrodek Sportu | B15: J.02.000 | C15: 926.92604.D0830+000 | F15: GMMW | G15: wpływy z usług - pozostałe | H15: DWB/6/WU/PO | I15: 3329300 | K15: 0 | L15: 300000 | M15: =I15-K15+L15 -> 3629300
M16: =I16-K16+L16 -> 0
M17: =I17-K17+L17 -> 0
A18: RAZEM | I18: =SUM(I14:I17) -> 3329300 | J18: =SUM(J14:J17) -> 0 | K18: 0 | L18: 530000 | M18: 3859300

Sheet Wniosek
K1: Załącznik nr 2
K2: do uchwały Nr XIII/96/2025
K3: Rady Dzielnicy Białołęka m.st. Warszawy
K4: z dnia 16 kwietnia 2025 r.
A5: WNIOSEK W SPRAWIE ZMIAN W PLANIE WYDATKÓW BIEŻĄCYCH
M6: w zł
A7: Stanowisko finansowe | C7: Pozycje finansowe | F7: Obszar funkcjonalny | G7: Program budżetowy | I7: Plan wg stanu na dzień | J7: Zaangażowanie */ Wykonanie * wg stanu na dzień | K7: Proponowane zmiany | M7: Plan po zmianach
A8: Nazwa dysponenta ** | B8: Kod | C8: Dział | D8: Rozdział | E8: § | F8: Kod | G8: w | H8: Kod | K8: zmniejszenia | L8: zwiększenia
A12: Dzielnicowe Biuro Finansów Oświaty | B12: J.02.000 | C12: 801.80104.W4210+000 | F12: GMMW | G12: Prowadzenie publicznych przedszkoli i innych form wychowania przedszkolnego | H12: B/V/1/1/1 | I12: 588983 | K12: 0 | L12: 33857 | M12: =I12-K12+L12 -> 622840
A13: Dzielnicowe Biuro Finansów Oświaty | B13: J.02.000 | C13: 801.80104.W4300+000 | F13: GMMW | G13: Prowadzenie publicznych przedszkoli i innych form wychowania przedszkolnego | H13: B/V/1/1/1 | I13: 1048371 | K13: 0 | L13: 30972 | M13: =I13-K13+L13 -> 1079343
A14: Dzielnicowe Biuro Finansów Oświaty | B14: J.02.000 | C14: 801.80101.W4210+000 | F14: GMMW | G14: Prowadzenie publicznych szkół podstawowych | H14: B/V/1/4/1 | I14: 1666712 | K14: 0 | L14: 15140 | M14: 1681852
A15: Dzielnicowe Biuro Finansów Oświaty | B15: J.02.000 | C15: 801.80101.W4240+000 | F15: GMMW | G15: Prowadzenie publicznych szkół podstawowych | H15: B/V/1/4/1 | I15: 300296 | K15: 0 | L15: 131200 | M15: 431496
A16: Dzielnicowe Biuro Finansów Oświaty | B16: J.02.000 | C16: 801.80101.W4300+000 | F16: GMMW | G16: Prowadzenie publicznych szkół podstawowych | H16: B/V/1/4/1 | I16: 2064739 | K16: 0 | L16: 21360 | M16: 2086099
A17: Dzielnicowe Biuro Finansów Oświaty | B17: J.02.000 | C17: 801.80101.W4520+000 | F17: GMMW | G17: Prowadzenie publicznych szkół podstawowych | H17: B/V/1/4/1 | I17: 304380 | K17: 0 | L17: 41749 | M17: 346129
A18: Dzielnicowe Biuro Finansów Oświaty | B18: J.02.000 | C18: 854.85406.W4110+000 | F18: BO/25/02/0047 | G18: Prowadzenie publicznych poradni psychologiczno-pedagogicznych | H18: B/V/1/19 | I18: 0 | K18: 0 | L18: 10314 | M18: 10314
A19: Dzielnicowe Biuro Finansów Oświaty | B19: J.02.000 | C19: 854.85406.W4120+000 | F19: BO/25/02/0047 | G19: Prowadzenie publicznych poradni psychologiczno-pedagogicznych | H19: B/V/1/19 | I19: 0 | K19: 0 | L19: 1176 | M19: 1176
A20: Dzielnicowe Biuro Finansów Oświaty | B20: J.02.000 | C20: 854.85406.W4170+000 | F20: BO/25/02/0047 | G20: Prowadzenie publicznych poradni psychologiczno-pedagogicznych | H20: B/V/1/19 | I20: 0 | K20: 0 | L20: 60000 | M20: 60000
A21: Dzielnicowe Biuro Finansów Oświaty | B21: J.02.000 | C21: 854.85406.W4210+000 | F21: BO/25/02/0047 | G21: Prowadzenie publicznych poradni psychologiczno-pedagogicznych | H21: B/V/1/19 | I21: 0 | K21: 0 | L21: 2865 | M21: 2865
A22: Dzielnicowe Biuro Finansów Oświaty | B22: J.02.000 | C22: 854.85406.W4300+000 | F22: BO/25/02/0047 | G22: Prowadzenie publicznych poradni psychologiczno-pedagogicznych | H22: B/V/1/19 | I22: 0 | K22: 0 | L22: 20000 | M22: 20000
A23: Dzielnicowe Biuro Finansów Oświaty | B23: J.02.000 | C23: 854.85406.W4710+000 | F23: BO/25/02/0047 | G23: Prowadzenie publicznych poradni psychologiczno-pedagogicznych | H23: B/V/1/19 | I23: 0 | K23: 0 | L23: 90 | M23: 90
A24: Dzielnicowe Biuro Finansów Oświaty | B24: J.02.000 | C24: 801.80101.W4270+000 | F24: GMMW | G24: Remonty w przedszkolach, szkołach i placówkach oświatowych | H24: B/V/1/27 | I24: 826883 | K24: 0 | L24: 293491 | M24: 1120374
A25: Dzielnicowe Biuro Finansów Oświaty | B25: J.02.000 | C25: 801.80104.W4270+000 | F25: GMMW | G25: Remonty w przedszkolach, szkołach i placówkach oświatowych | H25: B/V/1/27 | I25: 429500 | K25: 0 | L25: 220574 | M25: 650074
A26: Dzielnicowe Biuro Finansów Oświaty | B26: J.02.000 | C26: 854.85412.W4110+000 | F26: GMMW | G26: Wypoczynek dzieci i młodzieży szkolnej | H26: B/V/2/7 | I26: 150000 | K26: 0 | L26: 20000 | M26: 170000
A27: Dzielnicowe Biuro Finansów Oświaty | B27: J.02.000 | C27: 854.85412.W4120+000 | F27: GMMW | G27: Wypoczynek dzieci i młodzieży szkolnej | H27: B/V/2/7 | I27: 23000 | K27: 0 | L27: 3000 | M27: 26000
A28: Dzielnicowe Biuro Finansów Oświaty | B28: J.02.000 | C28: 854.85412.W4170+000 | F28: GMMW | G28: Wypoczynek dzieci i młodzieży szkolnej | H28: B/V/2/7 | I28: 1332300 | K28: 0 | L28: 207000 | M28: 1539300
A29: Ośrodek Pomocy Społecznej | B29: J.02.000 | C29: 854.85415.W3240+000 | F29: GMMW | G29: Stypendia socjalne | H29: B/V/2/8/2 | I29: 111600 | K29: 72798 | L29: 0 | M29: 38802
A30: Ośrodek Pomocy Społecznej | B30: J.02.000 | C30: 852.85219.W4010+000 | F30: GMMW | G30: Jednostki obsługi zadań z zakresu pomocy społecznej | H30: B/VI/3/7 | I30: 7654665 | K30: 0 | L30: 390000 | M30: 8044665
A31: Ośrodek Pomocy Społecznej | B31: J.02.000 | C31: 852.85219.W4110+000 | F31: GMMW | G31: Jednostki obsługi zadań z zakresu pomocy społecznej | H31: B/VI/3/7 | I31: 1337025 | K31: 0 | L31: 68950 | M31: 1405975
A32: Ośrodek Pomocy Społecznej | B32: J.02.000 | C32: 852.85219.W4120+000 | F32: GMMW | G32: Jednostki obsługi zadań z zakresu pomocy społecznej | H32: B/VI/3/7 | I32: 154461 | K32: 0 | L32: 9050 | M32: 163511
A33: Ośrodek Pomocy Społecznej | B33: J.02.000 | C33: 852.85219.W4270+000 | F33: GMMW | G33: Jednostki obsługi zadań z zakresu pomocy społecznej | H33: B/VI/3/7 | I33: 20000 | K33: 0 | L33: 3506 | M33: 23506
A34: Ośrodek Pomocy Społecznej | B34: J.02.000 | C34: 852.85219.W4300+000 | F34: GMMW | G34: Jednostki obsługi zadań z zakresu pomocy społecznej | H34: B/VI/3/7 | I34: 400438 | K34: 0 | L34: 51500 | M34: 451938
A35: Ośrodek Pomocy Społecznej | B35: J.02.000 | C35: 852.85219.W4440+000 | F35: GMMW | G35: Jednostki obsługi zadań z zakresu pomocy społecznej | H35: B/VI/3/7 | I35: 178954 | K35: 0 | L35: 21298 | M35: 200252
A36: Ośrodek Pomocy Społecznej | B36: J.02.000 | C36: 852.85219.W4710+000 | F36: GMMW | G36: Jednostki obsługi zadań z zakresu pomocy społecznej | H36: B/VI/3/7 | I36: 20000 | K36: 0 | L36: 2000 | M36: 22000
A37: Ośrodek Pomocy Społecznej | B37: J.02.000 | C37: 855.85504.W4010+000 | F37: GMMW | G37: Zapewnienie pomocy, opieki i wychowania dzieciom i młodzieży pozbawionym opieki rodziców | H37: B/VI/3/9 | I37: 400285 | K37: 0 | L37: 22000 | M37: 422285
A38: Ośrodek Pomocy Społecznej | B38: J.02.000 | C38: 855.85504.W4110+000 | F38: GMMW | G38: Zapewnienie pomocy, opieki i wychowania dzieciom i młodzieży pozbawionym opieki rodziców | H38: B/VI/3/9 | I38: 72000 | K38: 0 | L38: 2000 | M38: 74000
A39: Ośrodek Pomocy Społecznej | B39: J.02.000 | C39: 855.85504.W4120+000 | F39: GMMW | G39: Zapewnienie pomocy, opieki i wychowania dzieciom i młodzieży pozbawionym opieki rodziców | H39: B/VI/3/9 | I39: 7900 | K39: 0 | L39: 1000 | M39: 8900
A40: Białołęcki Ośrodek Sportu | B40: J.02.000 | C40: 926.92604.W4270+000 | F40: GMMW | G40: Utrzymanie obiektów sportowo-rekreacyjnych | H40: B/VIII/1/1 | I40: 126758 | K40: 0 | L40: 295900 | M40: 422658
A41: Białołęcki Ośrodek Sportu | B41: J.02.000 | C41: 926.92604.W4440+000 | F41: GMMW | G41: Utrzymanie obiektów sportowo-rekreacyjnych | H41: B/VIII/1/1 | I41: 192000 | K41: 0 | L41: 4100 | M41: 196100
A42: Wydział Ochrony Środowiska | B42: U.02.000 | C42: 900.90095.W4300+000 | F42: BO/25/02/0058 | G42: Place zabaw, ścieżki zdrowia i inne formy aktywności plenerowej | H42: B/III/4/1 | I42: 169500 | K42: 169500 | M42: 0
A43: Wydział Oświaty i Wychowania | B43: U.02.000 | C43: 801.80104.W2540+000 | F43: GMMW | G43: Dotacje dla niepublicznych przedszkoli i innych form wychowania przedszkolnego | H43: B/V/1/1/2 | I43: 109555801 | K43: 8000000 | M43: 101555801
A44: Wydział Oświaty i Wychowania | B44: U.02.000 | C44: 801.80104.W2590+000 | F44: GMMW | G44: Dotacje dla niepublicznych przedszkoli i innych form wychowania przedszkolnego | H44: B/V/1/1/2 | I44: 44020770 | L44: 10000000 | M44: 54020770
A45: Wydział Oświaty i Wychowania | B45: U.02.000 | C45: 801.80106.W2540+000 | F45: GMMW | G45: Dotacje dla niepublicznych przedszkoli i innych form wychowania przedszkolnego | H45: B/V/1/1/2 | I45: 705907 | L45: 200000 | M45: 905907
A46: Wydział Oświaty i Wychowania | B46: U.02.000 | C46: 801.80101.W4300+000 | F46: BO/25/02/0047 | G46: Prowadzenie publicznych szkół podstawowych | H46: B/V/1/4/1 | I46: 200000 | K46: 94445 | M46: 105555
A47: Wydział Oświaty i Wychowania | B47: U.02.000 | C47: 801.80101.W2540+000 | F47: GMMW | G47: Dotacje dla niepublicznych szkół podstawowych | H47: B/V/1/4/2 | I47: 9327570 | K47: 1000000 | M47: 8327570
A48: Wydział Oświaty i Wychowania | B48: U.02.000 | C48: 854.85404.W2590+000 | F48: GMMW | G48: Wczesne wspomaganie rozwoju dziecka | H48: B/V/1/32 | I48: 288014 | L48: 300000 | M48: 588014
A49: Wydział Oświaty i Wychowania | B49: U.02.000 | C49: 801.80149.W2540+000 | F49: GMMW | G49: Dotacje dla podmiotów niepublicznych realizujących zadania wymagające stosowania specjalnej nauki organizacji i metod pracy | H49: B/V/1/34/2 | I49: 22160269 | K49: 2000000 | M49: 20160269
A50: Wydział Oświaty i Wychowania | B50: U.02.000 | C50: 801.80149.W2590+000 | F50: GMMW | G50: Dotacje dla podmiotów niepublicznych realizujących zadania wymagające stosowania specjalnej nauki organizacji i metod pracy | H50: B/V/1/34/2 | I50: 6465390 | L50: 1000000 | M50: 7465390
A51: Wydział Oświaty i Wychowania | B51: U.02.000 | C51: 801.80150.W2540+000 | F51: GMMW | G51: Dotacje dla podmiotów niepublicznych realizujących zadania wymagające stosowania specjalnej nauki organizacji i metod pracy | H51: B/V/1/34/2 | I51: 5722894 | K51: 500000 | M51: 5222894
A52: Wydział Kultury | B52: U.02.000 | C52: 921.92105.W2360+000 | F52: GMMW | G52: Przedsięwzięcia artystyczne i kulturalne | H52: B/VII/1/1 | I52: 610000 | K52: 14000 | M52: 596000
A53: Wydział Kultury | B53: U.02.000 | C53: 921.92105.W4300+000 | F53: GMMW | G53: Przedsięwzięcia artystyczne i kulturalne | H53: B/VII/1/1 | I53: 985000 | L53: 14000 | M53: 999000
A54: Wydział Kultury | B54: U.02.000 | C54: 921.92116.W2480+000 | F54: GMMW | G54: Biblioteka Publiczna w Dzielnicy Białołęka | H54: B/VII/3/4/10 | I54: 6961540 | L54: 304000 | M54: 7265540
A55: Wydział Budżetowo-Księgowy | B55: U.02.000 | C55: 750.75023.W4530+000 | F55: GMMW | G55: Różne rozliczenia | H55: B/XI/1/7 | I55: 6742328 | K55: 1595000 | M55: 5147328
A56: RAZEM | I56: =SUM(I12:I55) -> 233326233 | J56: =SUM(J12:J55) -> 0 | K56: =SUM(K12:K55) -> 13445743 | L56: =SUM(L12:L55) -> 13802092 | M56: =I56-K56+L56 -> 233682582

Sheet ZADANIOWY
A1: PLAN WYDATKÓW w UKŁADZIE ZADANIOWYM | O1: Załącznik Nr 2a do Uchwały Nr XIII/96/2025 Rady Dzielnicy Białołęka m.st. Warszawy z dnia 16 kwietnia 2025 r. | V1: =IF(COUNTA(V2:V15065)=0,"",COUNTA(V2:V15065)) -> 
A2: D.02.000 | J2: =J10704 -> 857120642 | K2: 362167035 | L2: 13445743 | M2: 13802092 | N2: 13372945 | O2: 11818000 | P2: 857476991 | Q2: 360612090
A3: PROGRAM | B3: OPIS | C3: S/P/Z/PZ | D3: Header | E3: DZIAŁ | F3: ROZDZIAŁ | G3: § | H3: NAZWA PARAGRAFU | I3: OBSZAR FUNKCJONALNY | J3: PLAN | K3: w tym Urząd m.st. Warszawy | L3: PLAN Zmiana[-] | M3: PLAN Zmiana[+] | N3: w tym Urząd Zmiana[-] | O3: w tym Urząd Zmiana[+] | P3: PLAN PO ZMIANIE | Q3: w tym Urząd PO ZMIANIE | R3: WYPEŁNIONE POZYCJE | S3: WYPEŁNIONE ZMIANY | T3: =IF(COUNTIF(T4:T10703,"błędny urząd")<>0,"ŹLE","") ->  | U3: =IF(COUNTIF(U4:U10703,"ujemny plan")<>0,"ŹLE","") -> 
A4: I | B4: TRANSPORT I KOMUNIKACJA | C4: I sfera | D4: T | J4: =SUM(J204,J5) -> 14855512 | K4: 14855512 | L4: 0 | M4: 0 | N4: 0 | O4: 0 | P4: 14855512 | Q4: 14855512 | R4: =IF(SUM(J4:Q4)>0,"Tak","") -> Tak | S4: =IF(SUM(L4:O4)>0,"Tak","") ->  | T4: =IF(OR(J4<K4,P4<Q4,L4<N4,M4<O4),"błędny urząd","") ->  | U4: =IF(OR(J4<0,K4<0,P4<0,Q4<0),"ujemny plan","") -> 
A5: I/1 | B5: Komunikacja zbiorowa | C5: 1 program | D5: T | J5: =SUM(J193,J182,J38,J6) -> 0 | K5: 0 | L5: 0 | M5: 0 | N5: 0 | O5: 0 | P5: 0 | Q5: 0
A6: B/I/1/1 | B6: Zakup usług komunikacji miejskiej | C6: 1 zadanie | D6: T | J6: =SUM(J34,J30,J26,J19,J11,J7) -> 0 | K6: 0 | L6: 0 | M6: 0 | N6: 0 | O6: 0 | P6: 0 | Q6: 0
A7: B/I/1/1/1 | B7: Metro Warszawskie | C7: 1 podzadanie | D7: T | E7: 600 | F7: 60004 | J7: =SUM(J8) -> 0 | K7: 0 | L7: 0 | M7: 0 | N7: 0 | O7: 0 | P7: 0 | Q7: 0
A8: B/I/1/1/1 | B8: Metro Warszawskie | C8: 1 podzadanie | D8: NIE | E8: 600 | F8: 60004 | J8: =SUM(J9:J10) -> 0 | K8: 0 | L8: 0 | M8: 0 | N8: 0 | O8: 0 | P8: 0 | Q8: 0
A9: B/I/1/1/1 | B9: Metro Warszawskie | C9: 1 podzadanie | D9: NIE | E9: 600 | F9: 60004 | G9: 4300 | H9: Zakup usług pozostałych | I9: GMMW | P9: =J9+M9-L9 -> 0 | Q9: =K9+O9-N9 -> 0 | R9: =IF(SUM(J9:Q9)>0,"Tak","") ->  | S9: =IF(SUM(L9:O9)>0,"Tak","") ->  | T9: =IF(OR(J9<K9,P9<Q9,L9<N9,M9<O9),"błędny urząd","") ->  | U9: =IF(OR(J9<0,K9<0,P9<0,Q9<0),"ujemny plan","") -> 
A10: B/I/1/1/1 | B10: Metro Warszawskie | C10: 1 podzadanie | D10: NIE | E10: 600 | F10: 60004 | G10: 4530 | H10: Podatek od towarów i usług (VAT) | I10: GMMW | P10: =J10+M10-L10 -> 0 | Q10: =K10+O10-N10 -> 0 | R10: =IF(SUM(J10:Q10)>0,"Tak","") ->  | S10: =IF(SUM(L10:O10)>0,"Tak","") ->  | T10: =IF(OR(J10<K10,P10<Q10,L10<N10,M10<O10),"błędny urząd","") ->  | U10: =IF(OR(J10<0,K10<0,P10<0,Q10<0),"ujemny plan","") -> 
A11: B/I/1/1/2 | B11: Miejskie Zakłady Autobusowe | C11: 2 podzadanie | D11: T | E11: 600 | F11: 60004 | J11: =SUM(J12) -> 0 | K11: 0 | L11: 0 | M11: 0 | N11: 0 | O11: 0 | P11: 0 | Q11: 0
A12: B/I/1/1/2 | B12: Miejskie Zakłady Autobusowe | C12: 2 podzadanie | D12: NIE | E12: 600 | F12: 60004 | J12: =SUM(J13:J18) -> 0 | K12: 0 | L12: 0 | M12: 0 | N12: 0 | O12: 0 | P12: 0 | Q12: 0
A13: B/I/1/1/2 | B13: Miejskie Zakłady Autobusowe | C13: 2 podzadanie | D13: NIE | E13: 600 | F13: 60004 | G13: 4300 | H13: Zakup usług pozostałych | I13: GUUW | P13: 0 | Q13: 0
A14: B/I/1/1/2 | B14: Miejskie Zakłady Autobusowe | C14: 2 podzadanie | D14: NIE | E14: 600 | F14: 60004 | G14: 4300 | H14: Zakup usług pozostałych | I14: GMMW | P14: 0 | Q14: 0
A15: B/I/1/1/2 | B15: Miejskie Zakłady Autobusowe | C15: 2 podzadanie | D15: NIE | E15: 600 | F15: 60004 | G15: 4300 | H15: Zakup usług pozostałych | I15: GPGM | P15: 0 | Q15: 0
A16: B/I/1/1/2 | B16: Miejskie Zakłady Autobusowe | C16: 2 podzadanie | D16: NIE | E16: 600 | F16: 60004 | G16: 4370 | H16: Zakup usług związanych z pomocą obywatelom Ukrainy | I16: GUUW | P16: 0 | Q16: 0
A17: B/I/1/1/2 | B17: Miejskie Zakłady Autobusowe | C17: 2 podzadanie | D17: NIE | E17: 600 | F17: 60004 | G17: 4530 | H17: Podatek od towarów i usług (VAT) | I17: GUUW | P17: 0 | Q17: 0
A18: B/I/1/1/2 | B18: Miejskie Zakłady Autobusowe | C18: 2 podzadanie | D18: NIE | E18: 600 | F18: 60004 | G18: 4530 | H18: Podatek od towarów i usług (VAT) | I18: GMMW | P18: 0 | Q18: 0
A19: B/I/1/1/3 | B19: Pozostali przewoźnicy autobusowi | C19: 3 podzadanie | D19: T | E19: 600 | F19: 60004 | J19: =SUM(J20) -> 0 | K19: 0 | L19: 0 | M19: 0 | N19: 0 | O19: 0 | P19: 0 | Q19: 0
A20: B/I/1/1/3 | B20: Pozostali przewoźnicy autobusowi | C20: 3 podzadanie | D20: NIE | E20: 600 | F20: 60004 | J20: =SUM(J21:J25) -> 0 | K20: 0 | L20: 0 | M20: 0 | N20: 0 | O20: 0 | P20: 0 | Q20: 0
A21: B/I/1/1/3 | B21: Pozostali przewoźnicy autobusowi | C21: 3 podzadanie | D21: NIE | E21: 600 | F21: 60004 | G21: 4300 | H21: Zakup usług pozostałych | I21: GUUW | P21: 0 | Q21: 0
A22: B/I/1/1/3 | B22: Pozostali przewoźnicy autobusowi | C22: 3 podzadanie | D22: NIE | E22: 600 | F22: 60004 | G22: 4300 | H22: Zakup usług pozostałych | I22: GMMW | P22: 0 | Q22: 0
A23: B/I/1/1/3 | B23: Pozostali przewoźnicy autobusowi | C23: 3 podzadanie | D23: NIE | E23: 600 | F23: 60004 | G23: 4370 | H23: Zakup usług związanych z pomocą obywatelom Ukrainy | I23: GUUW | P23: 0 | Q23: 0
A24: B/I/1/1/3 | B24: Pozostali przewoźnicy autobusowi | C24: 3 podzadanie | D24: NIE | E24: 600 | F24: 60004 | G24: 4530 | H24: Podatek od towarów i usług (VAT) | I24: GUUW | P24: 0 | Q24: 0
A25: B/I/1/1/3 | B25: Pozostali przewoźnicy autobusowi | C25: 3 podzadanie | D25: NIE | E25: 600 | F25: 60004 | G25: 4530 | H25: Podatek od towarów i usług (VAT) | I25: GMMW | P25: 0 | Q25: 0
A26: B/I/1/1/4 | B26: Szybka Kolej Miejska | C26: 4 podzadanie | D26: T | E26: 600 | F26: 60004 | J26: =SUM(J27) -> 0 | K26: 0 | L26: 0 | M26: 0 | N26: 0 | O26: 0 | P26: 0 | Q26: 0
A27: B/I/1/1/4 | B27: Szybka Kolej Miejska | C27: 4 podzadanie | D27: NIE | E27: 600 | F27: 60004 | J27: =SUM(J28:J29) -> 0 | K27: 0 | L27: 0 | M27: 0 | N27: 0 | O27: 0 | P27: 0 | Q27: 0
A28: B/I/1/1/4 | B28: Szybka Kolej Miejska | C28: 4 podzadanie | D28: NIE | E28: 600 | F28: 60004 | G28: 4300 | H28: Zakup usług pozostałych | I28: GMMW | P28: 0 | Q28: 0
A29: B/I/1/1/4 | B29: Szybka Kolej Miejska | C29: 4 podzadanie | D29: NIE | E29: 600 | F29: 60004 | G29: 4530 | H29: Podatek od towarów i usług (VAT) | I29: GMMW | P29: 0 | Q29: 0
A30: B/I/1/1/5 | B30: Tramwaje Warszawskie | C30: 5 podzadanie | D30: T | E30: 600 | F30: 60004 | J30: =SUM(J31) -> 0 | K30: 0 | L30: 0 | M30: 0 | N30: 0 | O30: 0 | P30: 0 | Q30: 0
A31: B/I/1/1/5 | B31: Tramwaje Warszawskie | C31: 5 podzadanie | D31: NIE | E31: 600 | F31: 60004 | J31: =SUM(J32:J33) -> 0 | K31: 0 | L31: 0 | M31: 0 | N31: 0 | O31: 0 | P31: 0 | Q31: 0
A32: B/I/1/1/5 | B32: Tramwaje Warszawskie | C32: 5 podzadanie | D32: NIE | E32: 600 | F32: 60004 | G32: 4300 | H32: Zakup usług pozostałych | I32: GMMW | P32: 0 | Q32: 0
A33: B/I/1/1/5 | B33: Tramwaje Warszawskie | C33: 5 podzadanie | D33: NIE | E33: 600 | F33: 60004 | G33: 4530 | H33: Podatek od towarów i usług (VAT) | I33: GMMW | P33: 0 | Q33: 0
A34: B/I/1/1/6 | B34: Pozostali przewoźnicy kolejowi | C34: 6 podzadanie | D34: T | E34: 600 | F34: 60004 | J34: =SUM(J35) -> 0 | K34: 0 | L34: 0 | M34: 0 | N34: 0 | O34: 0 | P34: 0 | Q34: 0
A35: B/I/1/1/6 | B35: Pozostali przewoźnicy kolejowi | C35: 6 podzadanie | D35: NIE | E35: 600 | F35: 60004 | J35: =SUM(J36:J37) -> 0 | K35: 0 | L35: 0 | M35: 0 | N35: 0 | O35: 0 | P35: 0 | Q35: 0
A36: B/I/1/1/6 | B36: Pozostali przewoźnicy kolejowi | C36: 6 podzadanie | D36: NIE | E36: 600 | F36: 60004 | G36: 4300 | H36: Zakup usług pozostałych | I36: GMMW | P36: 0 | Q36: 0
A37: B/I/1/1/6 | B37: Pozostali przewoźnicy kolejowi | C37: 6 podzadanie | D37: NIE | E37: 600 | F37: 60004 | G37: 4530 | H37: Podatek od towarów i usług (VAT) | I37: GMMW | P37: 0 | Q37: 0
A38: B/I/1/2 | B38: Zarządzanie komunikacją miejską | C38: 2 zadanie | D38: T | J38: =SUM(J135,J125,J39) -> 0 | K38: 0 | L38: 0 | M38: 0 | N38: 0 | O38: 0 | P38: 0 | Q38: 0
A39: B/I/1/2/1 | B39: Utrzymanie Zarządu Transportu Miejskiego, w tym obsługa inwestycji | C39: 1 podzadanie | D39: T | E39: 600 | F39: 60004 | J39: =SUM(J121,J40) -> 0 | K39: 0 | L39: 0 | M39: 0 | N39: 0 | O39: 0 | P39: 0 | Q39: 0
A40: B/I/1/2/1 | B40: Utrzymanie Zarządu Transportu Miejskiego, w tym obsługa inwestycji | C40: 1 podzadanie | D40: NIE | E40: 600 | F40: 60004 | J40: =SUM(J41:J86,J90:J112,J116:J120) -> 0 | K40: 0 | L40: 0 | M40: 0 | N40: 0 | O40: 0 | P40: 0 | Q40: 0
A41: B/I/1/2/1 | B41: Utrzymanie Zarządu Transportu Miejskiego, w tym obsługa inwestycji | C41: 1 podzadanie | D41: NIE | E41: 600 | F41: 60004 | G41: 3020 | H41: Wydatki osobowe niezaliczone do wynagrodzeń | I41: GMMW | P41: 0 | Q41: 0
A42: B/I/1/2/1 | B42: Utrzymanie Zarządu Transportu Miejskiego, w tym obsługa inwestycji | C42: 1 podzadanie | D42: NIE | E42: 600 | F42: 60004 | G42: 4010 | H42: Wynagrodzenia osobowe pracowników | I42: GMMW | P42: 0 | Q42: 0
A43: B/I/1/2/1 | B43: Utrzymanie Zarządu Transportu Miejskiego, w tym obsługa inwestycji | C43: 1 podzadanie | D43: NIE | E43: 600 | F43: 60004 | G43: 4017 | H43: Wynagrodzenia osobowe pracowników | I43: SFUE/23/6 | P43: 0 | Q43: 0
A44: B/I/1/2/1 | B44: Utrzymanie Zarządu Transportu Miejskiego, w tym obsługa inwestycji | C44: 1 podzadanie | D44: NIE | E44: 600 | F44: 60004 | G44: 4018 | H44: Wynagrodzenia osobowe pracowników | I44: SFUE/8/59 | P44: 0 | Q44: 0
A45: B/I/1/2/1 | B45: Utrzymanie Zarządu Transportu Miejskiego, w tym obsługa inwestycji | C45: 1 podzadanie | D45: NIE | E45: 600 | F45: 60004 | G45: 4018 | H45: Wynagrodzenia osobowe pracowników | I45: SFUE/8/60 | P45: 0 | Q45: 0
A46: B/I/1/2/1 | B46: Utrzymanie Zarządu Transportu Miejskiego, w tym obsługa inwestycji | C46: 1 podzadanie | D46: NIE | E46: 600 | F46: 60004 | G46: 4018 | H46: Wynagrodzenia osobowe pracowników | I46: SFUE/8/61 | P46: 0 | Q46: 0
A47: B/I/1/2/1 | B47: Utrzymanie Zarządu Transportu Miejskiego, w tym obsługa inwestycji | C47: 1 podzadanie | D47: NIE | E47: 600 | F47: 60004 | G47: 4019 | H47: Wynagrodzenia osobowe pracowników | I47: SFUE/23/6 | P47: 0 | Q47: 0
A48: B/I/1/2/1 | B48: Utrzymanie Zarządu Transportu Miejskiego, w tym obsługa inwestycji | C48: 1 podzadanie | D48: NIE | E48: 600 | F48: 60004 | G48: 4019 | H48: Wynagrodzenia osobowe pracowników | I48: SFUE/8/60 | P48: 0 | Q48: 0
A49: B/I/1/2/1 | B49: Utrzymanie Zarządu Transportu Miejskiego, w tym obsługa inwestycji | C49: 1 podzadanie | D49: NIE | E49: 600 | F49: 60004 | G49: 4019 | H49: Wynagrodzenia osobowe pracowników | I49: SFUE/8/61 | P49: 0 | Q49: 0
A50: B/I/1/2/1 | B50: Utrzymanie Zarządu Transportu Miejskiego, w tym obsługa inwestycji | C50: 1 podzadanie | D50: NIE | E50: 600 | F50: 60004 | G50: 4040 | H50: Dodatkowe wynagrodzenie roczne | I50: GMMW | P50: 0 | Q50: 0
A51: B/I/1/2/1 | B51: Utrzymanie Zarządu Transportu Miejskiego, w tym obsługa inwestycji | C51: 1 podzadanie | D51: NIE | E51: 600 | F51: 60004 | G51: 4047 | H51: Dodatkowe wynagrodzenie roczne | I51: SFUE/23/6 | P51: 0 | Q51: 0
A52: B/I/1/2/1 | B52: Utrzymanie Zarządu Transportu Miejskiego, w tym obsługa inwestycji | C52: 1 podzadanie | D52: NIE | E52: 600 | F52: 60004 | G52: 4048 | H52: Dodatkowe wynagrodzenie roczne | I52: SFUE/8/59 | P52: 0 | Q52: 0
A53: B/I/1/2/1 | B53: Utrzymanie Zarządu Transportu Miejskiego, w tym obsługa inwestycji | C53: 1 podzadanie | D53: NIE | E53: 600 | F53: 60004 | G53: 4049 | H53: Dodatkowe wynagrodzenie roczne | I53: SFUE/23/6 | P53: 0 | Q53: 0
A54: B/I/1/2/1 | B54: Utrzymanie Zarządu Transportu Miejskiego, w tym obsługa inwestycji | C54: 1 podzadanie | D54: NIE | E54: 600 | F54: 60004 | G54: 4110 | H54: Składki na ubezpieczenia społeczne | I54: GMMW | P54: 0 | Q54: 0
A55: B/I/1/2/1 | B55: Utrzymanie Zarządu Transportu Miejskiego, w tym obsługa inwestycji | C55: 1 podzadanie | D55: NIE | E55: 600 | F55: 60004 | G55: 4117 | H55: Składki na ubezpieczenia społeczne | I55: SFUE/23/6 | P55: 0 | Q55: 0
A56: B/I/1/2/1 | B56: Utrzymanie Zarządu Transportu Miejskiego, w tym obsługa inwestycji | C56: 1 podzadanie | D56: NIE | E56: 600 | F56: 60004 | G56: 4118 | H56: Składki na ubezpieczenia społeczne | I56: SFUE/8/59 | P56: 0 | Q56: 0
A57: B/I/1/2/1 | B57: Utrzymanie Zarządu Transportu Miejskiego, w tym obsługa inwestycji | C57: 1 podzadanie | D57: NIE | E57: 600 | F57: 60004 | G57: 4118 | H57: Składki na ubezpieczenia społeczne | I57: SFUE/8/60 | P57: 0 | Q57: 0
A58: B/I/1/2/1 | B58: Utrzymanie Zarządu Transportu Miejskiego, w tym obsługa inwestycji | C58: 1 podzadanie | D58: NIE | E58: 600 | F58: 60004 | G58: 4118 | H58: Składki na ubezpieczenia społeczne | I58: SFUE/8/61 | P58: 0 | Q58: 0
A59: B/I/1/2/1 | B59: Utrzymanie Zarządu Transportu Miejskiego, w tym obsługa inwestycji | C59: 1 podzadanie | D59: NIE | E59: 600 | F59: 60004 | G59: 4119 | H59: Składki na ubezpieczenia społeczne | I59: SFUE/23/6 | P59: 0 | Q59: 0
A60: B/I/1/2/1 | B60: Utrzymanie Zarządu Transportu Miejskiego, w tym obsługa inwestycji | C60: 1 podzadanie | D60: NIE | E60: 600 | F60: 60004 | G60: 4119 | H60: Składki na ubezpieczenia społeczne | I60: SFUE/8/60 | P60: 0 | Q60: 0
A61: B/I/1/2/1 | B61: Utrzymanie Zarządu Transportu Miejskiego, w tym obsługa inwestycji | C61: 1 podzadanie | D61: NIE | E61: 600 | F61: 60004 | G61: 4119 | H61: Składki na ubezpieczenia społeczne | I61: SFUE/8/61 | P61: 0 | Q61: 0
A62: B/I/1/2/1 | B62: Utrzymanie Zarządu Transportu Miejskiego, w tym obsługa inwestycji | C62: 1 podzadanie | D62: NIE | E62: 600 | F62: 60004 | G62: 4120 | H62: Składki na Fundusz Pracy oraz Fundusz Solidarnościowy | I62: GMMW | P62: 0 | Q62: 0
A63: B/I/1/2/1 | B63: Utrzymanie Zarządu Transportu Miejskiego, w tym obsługa inwestycji | C63: 1 podzadanie | D63: NIE | E63: 600 | F63: 60004 | G63: 4127 | H63: Składki na Fundusz Pracy oraz Fundusz Solidarnościowy | I63: SFUE/23/6 | P63: 0 | Q63: 0
A64: B/I/1/2/1 | B64: Utrzymanie Zarządu Transportu Miejskiego, w tym obsługa inwestycji | C64: 1 podzadanie | D64: NIE | E64: 600 | F64: 60004 | G64: 4128 | H64: Składki na Fundusz Pracy oraz Fundusz Solidarnościowy | I64: SFUE/8/59 | P64: 0 | Q64: 0
A65: B/I/1/2/1 | B65: Utrzymanie Zarządu Transportu Miejskiego, w tym obsługa inwestycji | C65: 1 podzadanie | D65: NIE | E65: 600 | F65: 60004 | G65: 4128 | H65: Składki na Fundusz Pracy oraz Fundusz Solidarnościowy | I65: SFUE/8/60 | P65: 0 | Q65: 0
A66: B/I/1/2/1 | B66: Utrzymanie Zarządu Transportu Miejskiego, w tym obsługa inwestycji | C66: 1 podzadanie | D66: NIE | E66: 600 | F66: 60004 | G66: 4128 | H66: Składki na Fundusz Pracy oraz Fundusz Solidarnościowy | I66: SFUE/8/61 | P66: 0 | Q66: 0
A67: B/I/1/2/1 | B67: Utrzymanie Zarządu Transportu Miejskiego, w tym obsługa inwestycji | C67: 1 podzadanie | D67: NIE | E67: 600 | F67: 60004 | G67: 4129 | H67: Składki na Fundusz Pracy oraz Fundusz Solidarnościowy | I67: SFUE/23/6 | P67: 0 | Q67: 0
A68: B/I/1/2/1 | B68: Utrzymanie Zarządu Transportu Miejskiego, w tym obsługa inwestycji | C68: 1 podzadanie | D68: NIE | E68: 600 | F68: 60004 | G68: 4129 | H68: Składki na Fundusz Pracy oraz Fundusz Solidarnościowy | I68: SFUE/8/60 | P68: 0 | Q68: 0
A69: B/I/1/2/1 | B69: Utrzymanie Zarządu Transportu Miejskiego, w tym obsługa inwestycji | C69: 1 podzadanie | D69: NIE | E69: 600 | F69: 60004 | G69: 4129 | H69: Składki na Fundusz Pracy oraz Fundusz Solidarnościowy | I69: SFUE/8/61 | P69: 0 | Q69: 0
A70: B/I/1/2/1 | B70: Utrzymanie Zarządu Transportu Miejskiego, w tym obsługa inwestycji | C70: 1 podzadanie | D70: NIE | E70: 600 | F70: 60004 | G70: 4140 | H70: Wpłaty na Państwowy Fundusz Rehabilitacji Osób Niepełnosprawnych | I70: GMMW | P70: 0 | Q70: 0
A71: B/I/1/2/1 | B71: Utrzymanie Zarządu Transportu Miejskiego, w tym obsługa inwestycji | C71: 1 podzadanie | D71: NIE | E71: 600 | F71: 60004 | G71: 4170 | H71: Wynagrodzenia bezosobowe | I71: GMMW | P71: 0 | Q71: 0
A72: B/I/1/2/1 | B72: Utrzymanie Zarządu Transportu Miejskiego, w tym obsługa inwestycji | C72: 1 podzadanie | D72: NIE | E72: 600 | F72: 60004 | G72: 4190 | H72: Nagrody konkursowe | I72: GMMW | P72: 0 | Q72: 0
A73: B/I/1/2/1 | B73: Utrzymanie Zarządu Transportu Miejskiego, w tym obsługa inwestycji | C73: 1 podzadanie | D73: NIE | E73: 600 | F73: 60004 | G73: 4210 | H73: Zakup materiałów i wyposażenia | I73: GMMW/C | P73: 0 | Q73: 0
A74: B/I/1/2/1 | B74: Utrzymanie Zarządu Transportu Miejskiego, w tym obsługa inwestycji | C74: 1 podzadanie | D74: NIE | E74: 600 | F74: 60004 | G74: 4210 | H74: Zakup materiałów i wyposażenia | I74: GMMW | P74: =J74+M74-L74 -> 0 | Q74: =K74+O74-N74 -> 0 | R74: =IF(SUM(J74:Q74)>0,"Tak","") ->  | S74: =IF(SUM(L74:O74)>0,"Tak","") ->  | T74: =IF(OR(J74<K74,P74<Q74,L74<N74,M74<O74),"błędny urząd","") ->  | U74: =IF(OR(J74<0,K74<0,P74<0,Q74<0),"ujemny plan","") -> 
A75: B/I/1/2/1 | B75: Utrzymanie Zarządu Transportu Miejskiego, w tym obsługa inwestycji | C75: 1 podzadanie | D75: NIE | E75: 600 | F75: 60004 | G75: 4260 | H75: Zakup energii | I75: GMMW | P75: 0 | Q75: 0
A76: B/I/1/2/1 | B76: Utrzymanie Zarządu Transportu Miejskiego, w tym obsługa inwestycji | C76: 1 podzadanie | D76: NIE | E76: 600 | F76: 60004 | G76: 4270 | H76: Zakup usług remontowych | I76: GMMW | P76: 0 | Q76: 0
A77: B/I/1/2/1 | B77: Utrzymanie Zarządu Transportu Miejskiego, w tym obsługa inwestycji | C77: 1 podzadanie | D77: NIE | E77: 600 | F77: 60004 | G77: 4280 | H77: Zakup usług zdrowotnych | I77: GMMW/C | P77: 0 | Q77: 0
A78: B/I/1/2/1 | B78: Utrzymanie Zarządu Transportu Miejskiego, w tym obsługa inwestycji | C78: 1 podzadanie | D78: NIE | E78: 600 | F78: 60004 | G78: 4280 | H78: Zakup usług zdrowotnych | I78: GMMW | P78: 0 | Q78: 0
A79: B/I/1/2/1 | B79: Utrzymanie Zarządu Transportu Miejskiego, w tym obsługa inwestycji | C79: 1 podzadanie | D79: NIE | E79: 600 | F79: 60004 | G79: 4300 | H79: Zakup usług pozostałych | I79: GMMW | P79: 0 | Q79: 0
A80: B/I/1/2/1 | B80: Utrzymanie Zarządu Transportu Miejskiego, w tym obsługa inwestycji | C80: 1 podzadanie | D80: NIE | E80: 600 | F80: 60004 | G80: 4307 | H80: Zakup usług pozostałych | I80: SFUE/29/1 | P80: 0 | Q80: 0
A81: B/I/1/2/1 | B81: Utrzymanie Zarządu Transportu Miejskiego, w tym obsługa inwestycji | C81: 1 podzadanie | D81: NIE | E81: 600 | F81: 60004 | G81: 4309 | H81: Zakup usług pozostałych | I81: SFUE/29/1 | P81: 0 | Q81: 0
A82: B/I/1/2/1 | B82: Utrzymanie Zarządu Transportu Miejskiego, w tym obsługa inwestycji | C82: 1 podzadanie | D82: NIE | E82: 600 | F82: 60004 | G82: 4360 | H82: Opłaty z tytułu zakupu usług telekomunikacyjnych | I82: GMMW | P82: 0 | Q82: 0
A83: B/I/1/2/1 | B83: Utrzymanie Zarządu Transportu Miejskiego, w tym obsługa inwestycji | C83: 1 podzadanie | D83: NIE | E83: 600 | F83: 60004 | G83: 4380 | H83: Zakup usług obejmujących tłumaczenia | I83: GMMW | P83: 0 | Q83: 0
A84: B/I/1/2/1 | B84: Utrzymanie Zarządu Transportu Miejskiego, w tym obsługa inwestycji | C84: 1 podzadanie | D84: NIE | E84: 600 | F84: 60004 | G84: 4390 | H84: Zakup usług obejmujących wykonanie ekspertyz, analiz i opinii | I84: GMMW | P84: 0 | Q84: 0
A85: B/I/1/2/1 | B85: Utrzymanie Zarządu Transportu Miejskiego, w tym obsługa inwestycji | C85: 1 podzadanie | D85: NIE | E85: 600 | F85: 60004 | G85: 4397 | H85: Zakup usług obejmujących wykonanie ekspertyz, analiz i opinii | I85: SFUE/29/1 | P85: 0 | Q85: 0
A86: B/I/1/2/1 | B86: Utrzymanie Zarządu Transportu Miejskiego, w tym obsługa inwestycji | C86: 1 podzadanie | D86: NIE | E86: 600 | F86: 60004 | G86: 4399 | H86: Zakup usług obejmujących wykonanie ekspertyz, analiz i opinii | J86: =SUM(J87:J89) -> 0 | K86: 0 | L86: 0 | M86: 0 | N86: 0 | O86: 0 | P86: 0 | Q86: 0
A87: B/I/1/2/1 | B87: Utrzymanie Zarządu Transportu Miejskiego, w tym obsługa inwestycji | C87: 1 podzadanie | D87: NIE | E87: 600 | F87: 60004 | G87: 4399 | H87: +000 | I87: SFUE/29/1 | P87: 0 | Q87: 0
A88: B/I/1/2/1 | B88: Utrzymanie Zarządu Transportu Miejskiego, w tym obsługa inwestycji | C88: 1 podzadanie | D88: NIE | E88: 600 | F88: 60004 | G88: 4399 | H88: +001 | I88: SFUE/29/1 | P88: 0 | Q88: 0
A89: B/I/1/2/1 | B89: Utrzymanie Zarządu Transportu Miejskiego, w tym obsługa inwestycji | C89: 1 podzadanie | D89: NIE | E89: 600 | F89: 60004 | G89: 4399 | H89: +002 | I89: SFUE/29/1 | P89: 0 | Q89: 0
A90: B/I/1/2/1 | B90: Utrzymanie Zarządu Transportu Miejskiego, w tym obsługa inwestycji | C90: 1 podzadanie | D90: NIE | E90: 600 | F90: 60004 | G90: 4400 | H90: Opłaty za administrowanie i czynsze za budynki, lokale i pomieszczenia garażowe | I90: GMMW | P90: 0 | Q90: 0
A91: B/I/1/2/1 | B91: Utrzymanie Zarządu Transportu Miejskiego, w tym obsługa inwestycji | C91: 1 podzadanie | D91: NIE | E91: 600 | F91: 60004 | G91: 4410 | H91: Podróże służbowe krajowe | I91: GMMW | P91: 0 | Q91: 0
A92: B/I/1/2/1 | B92: Utrzymanie Zarządu Transportu Miejskiego, w tym obsługa inwestycji | C92: 1 podzadanie | D92: NIE | E92: 600 | F92: 60004 | G92: 4420 | H92: Podróże służbowe zagraniczne | I92: GMMW | P92: 0 | Q92: 0
A93: B/I/1/2/1 | B93: Utrzymanie Zarządu Transportu Miejskiego, w tym obsługa inwestycji | C93: 1 podzadanie | D93: NIE | E93: 600 | F93: 60004 | G93: 4428 | H93: Podróże służbowe zagraniczne | I93: SFUE/8/59 | P93: 0 | Q93: 0
A94: B/I/1/2/1 | B94: Utrzymanie Zarządu Transportu Miejskiego, w tym obsługa inwestycji | C94: 1 podzadanie | D94: NIE | E94: 600 | F94: 60004 | G94: 4428 | H94: Podróże służbowe zagraniczne | I94: SFUE/8/60 | P94: 0 | Q94: 0
A95: B/I/1/2/1 | B95: Utrzymanie Zarządu Transportu Miejskiego, w tym obsługa inwestycji | C95: 1 podzadanie | D95: NIE | E95: 600 | F95: 60004 | G95: 4428 | H95: Podróże służbowe zagraniczne | I95: SFUE/8/61 | P95: 0 | Q95: 0
A96: B/I/1/2/1 | B96: Utrzymanie Zarządu Transportu Miejskiego, w tym obsługa inwestycji | C96: 1 podzadanie | D96: NIE | E96: 600 | F96: 60004 | G96: 4429 | H96: Podróże służbowe zagraniczne | I96: SFUE/8/60 | P96: 0 | Q96: 0
A97: B/I/1/2/1 | B97: Utrzymanie Zarządu Transportu Miejskiego, w tym obsługa inwestycji | C97: 1 podzadanie | D97: NIE | E97: 600 | F97: 60004 | G97: 4429 | H97: Podróże służbowe zagraniczne | I97: SFUE/8/61 | P97: 0 | Q97: 0
A98: B/I/1/2/1 | B98: Utrzymanie Zarządu Transportu Miejskiego, w tym obsługa inwestycji | C98: 1 podzadanie | D98: NIE | E98: 600 | F98: 60004 | G98: 4430 | H98: Różne opłaty i składki | I98: GMMW | P98: 0 | Q98: 0
A99: B/I/1/2/1 | B99: Utrzymanie Zarządu Transportu Miejskiego, w tym obsługa inwestycji | C99: 1 podzadanie | D99: NIE | E99: 600 | F99: 60004 | G99: 4440 | H99: Odpisy na zakładowy fundusz świadczeń socjalnych | I99: GMMW | P99: 0 | Q99: 0
A100: B/I/1/2/1 | B100: Utrzymanie Zarządu Transportu Miejskiego, w tym obsługa inwestycji | C100: 1 podzadanie | D100: NIE | E100: 600 | F100: 60004 | G100: 4480 | H100: Podatek od nieruchomości | I100: GMMW | P100: 0 | Q100: 0
A101: B/I/1/2/1 | B101: Utrzymanie Zarządu Transportu Miejskiego, w tym obsługa inwestycji | C101: 1 podzadanie | D101: NIE | E101: 600 | F101: 60004 | G101: 4510 | H101: Opłaty na rzecz budżetu państwa | I101: GMMW | P101: 0 | Q101: 0
A102: B/I/1/2/1 | B102: Utrzymanie Zarządu Transportu Miejskiego, w tym obsługa inwestycji | C102: 1 podzadanie | D102: NIE | E102: 600 | F102: 60004 | G102: 4530 | H102: Podatek od towarów i usług (VAT) | I102: GMMW/C | P102: 0 | Q102: 0
A103: B/I/1/2/1 | B103: Utrzymanie Zarządu Transportu Miejskiego, w tym obsługa inwestycji | C103: 1 podzadanie | D103: NIE | E103: 600 | F103: 60004 | G103: 4530 | H103: Podatek od towarów i usług (VAT) | I103: GMMW | P103: 0 | Q103: 0
A104: B/I/1/2/1 | B104: Utrzymanie Zarządu Transportu Miejskiego, w tym obsługa inwestycji | C104: 1 podzadanie | D104: NIE | E104: 600 | F104: 60004 | G104: 4530 | H104: Podatek od towarów i usług (VAT) | I104: SFUE/29/1 | P104: 0 | Q104: 0
A105: B/I/1/2/1 | B105: Utrzymanie Zarządu Transportu Miejskiego, w tym obsługa inwestycji | C105: 1 podzadanie | D105: NIE | E105: 600 | F105: 60004 | G105: 4540 | H105: Składki do organizacji międzynarodowych | I105: GMMW | P105: 0 | Q105: 0
A106: B/I/1/2/1 | B106: Utrzymanie Zarządu Transportu Miejskiego, w tym obsługa inwestycji | C106: 1 podzadanie | D106: NIE | E106: 600 | F106: 60004 | G106: 4590 | H106: Kary i odszkodowania wypłacane na rzecz osób fizycznych | I106: GMMW | P106: 0 | Q106: 0
A107: B/I/1/2/1 | B107: Utrzymanie Zarządu Transportu Miejskiego, w tym obsługa inwestycji | C107: 1 podzadanie | D107: NIE | E107: 600 | F107: 60004 | G107: 4600 | H107: Kary, odszkodowania i grzywny wypłacane na rzecz osób prawnych i innych jednostek organizacyjnych | I107: GMMW | P107: 0 | Q107: 0
A108: B/I/1/2/1 | B108: Utrzymanie Zarządu Transportu Miejskiego, w tym obsługa inwestycji | C108: 1 podzadanie | D108: NIE | E108: 600 | F108: 60004 | G108: 4610 | H108: Koszty postępowania sądowego i prokuratorskiego | I108: GMMW | P108: 0 | Q108: 0
A109: B/I/1/2/1 | B109: Utrzymanie Zarządu Transportu Miejskiego, w tym obsługa inwestycji | C109: 1 podzadanie | D109: NIE | E109: 600 | F109: 60004 | G109: 4700 | H109: Szkolenia pracowników niebędących członkami korpusu służby cywilnej | I109: GMMW/C | P109: 0 | Q109: 0
A110: B/I/1/2/1 | B110: Utrzymanie Zarządu Transportu Miejskiego, w tym obsługa inwestycji | C110: 1 podzadanie | D110: NIE | E110: 600 | F110: 60004 | G110: 4700 | H110: Szkolenia pracowników niebędących członkami korpusu służby cywilnej | I110: GMMW | P110: 0 | Q110: 0
A111: B/I/1/2/1 | B111: Utrzymanie Zarządu Transportu Miejskiego, w tym obsługa inwestycji | C111: 1 podzadanie | D111: NIE | E111: 600 | F111: 60004 | G111: 4707 | H111: Szkolenia pracowników niebędących członkami korpusu służby cywilnej | I111: SFUE/29/1 | P111: 0 | Q111: 0
A112: B/I/1/2/1 | B112: Utrzymanie Zarządu Transportu Miejskiego, w tym obsługa inwestycji | C112: 1 podzadanie | D112: NIE | E112: 600 | F112: 60004 | G112: 4709 | H112: Szkolenia pracowników niebędących członkami korpusu służby cywilnej | J112: =SUM(J113:J115) -> 0 | K112: 0 | L112: 0 | M112: 0 | N112: 0 | O112: 0 | P112: 0 | Q112: 0
A113: B/I/1/2/1 | B113: Utrzymanie Zarządu Transportu Miejskiego, w tym obsługa inwestycji | C113: 1 podzadanie | D113: NIE | E113: 600 | F113: 60004 | G113: 4709 | H113: +000 | I113: SFUE/29/1 | P113: 0 | Q113: 0
A114: B/I/1/2/1 | B114: Utrzymanie Zarządu Transportu Miejskiego, w tym obsługa inwestycji | C114: 1 podzadanie | D114: NIE | E114: 600 | F114: 60004 | G114: 4709 | H114: +001 | I114: SFUE/29/1 | P114: 0 | Q114: 0
A115: B/I/1/2/1 | B115: Utrzymanie Zarządu Transportu Miejskiego, w tym obsługa inwestycji | C115: 1 podzadanie | D115: NIE | E115: 600 | F115: 60004 | G115: 4709 | H115: +002 | I115: SFUE/29/1 | P115: 0 | Q115: 0
A116: B/I/1/2/1 | B116: Utrzymanie Zarządu Transportu Miejskiego, w tym obsługa inwestycji | C116: 1 podzadanie | D116: NIE | E116: 600 | F116: 60004 | G116: 4710 | H116: Wpłaty na PPK finansowane przez podmiot zatrudniający | I116: GMMW | P116: 0 | Q116: 0
A117: B/I/1/2/1 | B117: Utrzymanie Zarządu Transportu Miejskiego, w tym obsługa inwestycji | C117: 1 podzadanie | D117: NIE | E117: 600 | F117: 60004 | G117: 4718 | H117: Wpłaty na PPK finansowane przez podmiot zatrudniający | I117: SFUE/8/59 | P117: 0 | Q117: 0
A118: B/I/1/2/1 | B118: Utrzymanie Zarządu Transportu Miejskiego, w tym obsługa inwestycji | C118: 1 podzadanie | D118: NIE | E118: 600 | F118: 60004 | G118: 4718 | H118: Wpłaty na PPK finansowane przez podmiot zatrudniający | I118: SFUE/8/61 | P118: 0 | Q118: 0
A119: B/I/1/2/1 | B119: Utrzymanie Zarządu Transportu Miejskiego, w tym obsługa inwestycji | C119: 1 podzadanie | D119: NIE | E119: 600 | F119: 60004 | G119: 4719 | H119: Wpłaty na PPK finansowane przez podmiot zatrudniający | I119: SFUE/8/61 | P119: 0 | Q119: 0
A120: B/I/1/2/1 | B120: Utrzymanie Zarządu Transportu Miejskiego, w tym obsługa inwestycji | C120: 1 podzadanie | D120: NIE | E120: 600 | F120: 60004 | G120: 4950 | H120: Różnice kursowe | I120: GMMW | P120: 0 | Q120: 0
A121: B/I/1/2/1 | B121: Utrzymanie Zarządu Transportu Miejskiego, w tym obsługa inwestycji | C121: 1 podzadanie | D121: NIE | E121: 754 | F121: 75416 | J121: =SUM(J122:J124) -> 0 | K121: 0 | L121: 0 | M121: 0 | N121: 0 | O121: 0 | P121: 0 | Q121: 0
A122: B/I/1/2/1 | B122: Utrzymanie Zarządu Transportu Miejskiego, w tym obsługa inwestycji | C122: 1 podzadanie | D122: NIE | E122: 754 | F122: 75416 | G122: 4260 | H122: Zakup energii | I122: GMMW | P122: 0 | Q122: 0
A123: B/I/1/2/1 | B123: Utrzymanie Zarządu Transportu Miejskiego, w tym obsługa inwestycji | C123: 1 podzadanie | D123: NIE | E123: 754 | F123: 75416 | G123: 4300 | H123: Zakup usług pozostałych | I123: GMMW | P123: 0 | Q123: 0
A124: B/I/1/2/1 | B124: Utrzymanie Zarządu Transportu Miejskiego, w tym obsługa inwestycji | C124: 1 podzadanie | D124: NIE | E124: 754 | F124: 75416 | G124: 4400 | H124: Opłaty za administrowanie i czynsze za budynki, lokale i pomieszczenia garażowe | I124: GMMW | P124: 0 | Q124: 0
A125: B/I/1/2/2 | B125: Utrzymanie i obsługa systemu biletowego | C125: 2 podzadanie | D125: T | E125: 600 | F125: 60004 | J125: =SUM(J126) -> 0 | K125: 0 | L125: 0 | M125: 0 | N125: 0 | O125: 0 | P125: 0 | Q125: 0
A126: B/I/1/2/2 | B126: Utrzymanie i obsługa systemu biletowego | C126: 2 podzadanie | D126: NIE | E126: 600 | F126: 60004 | J126: =SUM(J127:J134) -> 0 | K126: 0 | L126: 0 | M126: 0 | N126: 0 | O126: 0 | P126: 0 | Q126: 0
A127: B/I/1/2/2 | B127: Utrzymanie i obsługa systemu biletowego | C127: 2 podzadanie | D127: NIE | E127: 600 | F127: 60004 | G127: 4190 | H127: Nagrody konkursowe | I127: GMMW | P127: 0 | Q127: 0
A128: B/I/1/2/2 | B128: Utrzymanie i obsługa systemu biletowego | C128: 2 podzadanie | D128: NIE | E128: 600 | F128: 60004 | G128: 4210 | H128: Zakup materiałów i wyposażenia | I128: GMMW | P128: 0 | Q128: 0
A129: B/I/1/2/2 | B129: Utrzymanie i obsługa systemu biletowego | C129: 2 podzadanie | D129: NIE | E129: 600 | F129: 60004 | G129: 4260 | H129: Zakup energii | I129: GMMW | P129: 0 | Q129: 0
A130: B/I/1/2/2 | B130: Utrzymanie i obsługa systemu biletowego | C130: 2 podzadanie | D130: NIE | E130: 600 | F130: 60004 | G130: 4270 | H130: Zakup usług remontowych | I130: GMMW | P130: 0 | Q130: 0
A131: B/I/1/2/2 | B131: Utrzymanie i obsługa systemu biletowego | C131: 2 podzadanie | D131: NIE | E131: 600 | F131: 60004 | G131: 4300 | H131: Zakup usług pozostałych | I131: GMMW | P131: 0 | Q131: 0
A132: B/I/1/2/2 | B132: Utrzymanie i obsługa systemu biletowego | C132: 2 podzadanie | D132: NIE | E132: 600 | F132: 60004 | G132: 4400 | H132: Opłaty za administrowanie i czynsze za budynki, lokale i pomieszczenia garażowe | I132: GMMW | P132: 0 | Q132: 0
A133: B/I/1/2/2 | B133: Utrzymanie i obsługa systemu biletowego | C133: 2 podzadanie | D133: NIE | E133: 600 | F133: 60004 | G133: 4530 | H133: Podatek od towarów i usług (VAT) | I133: GMMW | P133: 0 | Q133: 0
A134: B/I/1/2/2 | B134: Utrzymanie i obsługa systemu biletowego | C134: 2 podzadanie | D134: NIE | E134: 600 | F134: 60004 | G134: 4610 | H134: Koszty postępowania sądowego i prokuratorskiego | I134: GMMW | P134: 0 | Q134: 0
A135: B/I/1/2/3 | B135: Organizacja komunikacji, marketing, nadzór i kontrola ruchu | C135: 3 podzadanie | D135: T | J135: =SUM(J177,J172,J136) -> 0 | K135: 0 | L135: 0 | M135: 0 | N135: 0 | O135: 0 | P135: 0 | Q135: 0
A136: B/I/1/2/3 | B136: Organizacja komunikacji, marketing, nadzór i kontrola ruchu | C136: 3 podzadanie | D136: NIE | E136: 600 | F136: 60004 | J136: =SUM(J137:J161,J165:J168) -> 0 | K136: 0 | L136: 0 | M136: 0 | N136: 0 | O136: 0 | P136: 0 | Q136: 0
A137: B/I/1/2/3 | B137: Organizacja komunikacji, marketing, nadzór i kontrola ruchu | C137: 3 podzadanie | D137: NIE | E137: 600 | F137: 60004 | G137: 3020 | H137: Wydatki osobowe niezaliczone do wynagrodzeń | I137: GMMW | P137: 0 | Q137: 0
A138: B/I/1/2/3 | B138: Organizacja komunikacji, marketing, nadzór i kontrola ruchu | C138: 3 podzadanie | D138: NIE | E138: 600 | F138: 60004 | G138: 4210 | H138: Zakup materiałów i wyposażenia | I138: GMMW | P138: =J138+M138-L138 -> 0 | Q138: =K138+O138-N138 -> 0 | R138: =IF(SUM(J138:Q138)>0,"Tak","") ->  | S138: =IF(SUM(L138:O138)>0,"Tak","") ->  | T138: =IF(OR(J138<K138,P138<Q138,L138<N138,M138<O138),"błędny urząd","") ->  | U138: =IF(OR(J138<0,K138<0,P138<0,Q138<0),"ujemny plan","") -> 
A139: B/I/1/2/3 | B139: Organizacja komunikacji, marketing, nadzór i kontrola ruchu | C139: 3 podzadanie | D139: NIE | E139: 600 | F139: 60004 | G139: 4218 | H139: Zakup materiałów i wyposażenia | I139: SFUE/8/59 | P139: 0 | Q139: 0
A140: B/I/1/2/3 | B140: Organizacja komunikacji, marketing, nadzór i kontrola ruchu | C140: 3 podzadanie | D140: NIE | E140: 600 | F140: 60004 | G140: 4218 | H140: Zakup materiałów i wyposażenia | I140: SFUE/8/60 | P140: 0 | Q140: 0
A141: B/I/1/2/3 | B141: Organizacja komunikacji, marketing, nadzór i kontrola ruchu | C141: 3 podzadanie | D141: NIE | E141: 600 | F141: 60004 | G141: 4218 | H141: Zakup materiałów i wyposażenia | I141: SFUE/8/61 | P141: 0 | Q141: 0
A142: B/I/1/2/3 | B142: Organizacja komunikacji, marketing, nadzór i kontrola ruchu | C142: 3 podzadanie | D142: NIE | E142: 600 | F142: 60004 | G142: 4219 | H142: Zakup materiałów i wyposażenia | I142: SFUE/8/61 | P142: 0 | Q142: 0
A143: B/I/1/2/3 | B143: Organizacja komunikacji, marketing, nadzór i kontrola ruchu | C143: 3 podzadanie | D143: NIE | E143: 600 | F143: 60004 | G143: 4270 | H143: Zakup usług remontowych | I143: GMMW | P143: 0 | Q143: 0
A144: B/I/1/2/3 | B144: Organizacja komunikacji, marketing, nadzór i kontrola ruchu | C144: 3 podzadanie | D144: NIE | E144: 600 | F144: 60004 | G144: 4300 | H144: Zakup usług pozostałych | I144: GMMW | P144: 0 | Q144: 0
A145: B/I/1/2/3 | B145: Organizacja komunikacji, marketing, nadzór i kontrola ruchu | C145: 3 podzadanie | D145: NIE | E145: 600 | F145: 60004 | G145: 4307 | H145: Zakup usług pozostałych | I145: SFUE/23/6 | P145: 0 | Q145: 0
A146: B/I/1/2/3 | B146: Organizacja komunikacji, marketing, nadzór i kontrola ruchu | C146: 3 podzadanie | D146: NIE | E146: 600 | F146: 60004 | G146: 4308 | H146: Zakup usług pozostałych | I146: SFUE/8/59 | P146: 0 | Q146: 0
A147: B/I/1/2/3 | B147: Organizacja komunikacji, marketing, nadzór i kontrola ruchu | C147: 3 podzadanie | D147: NIE | E147: 600 | F147: 60004 | G147: 4308 | H147: Zakup usług pozostałych | I147: SFUE/8/60 | P147: 0 | Q147: 0
A148: B/I/1/2/3 | B148: Organizacja komunikacji, marketing, nadzór i kontrola ruchu | C148: 3 podzadanie | D148: NIE | E148: 600 | F148: 60004 | G148: 4308 | H148: Zakup usług pozostałych | I148: SFUE/8/61 | P148: 0 | Q148: 0
A149: B/I/1/2/3 | B149: Organizacja komunikacji, marketing, nadzór i kontrola ruchu | C149: 3 podzadanie | D149: NIE | E149: 600 | F149: 60004 | G149: 4309 | H149: Zakup usług pozostałych | I149: SFUE/23/6 | P149: 0 | Q149: 0
A150: B/I/1/2/3 | B150: Organizacja komunikacji, marketing, nadzór i kontrola ruchu | C150: 3 podzadanie | D150: NIE | E150: 600 | F150: 60004 | G150: 4309 | H150: Zakup usług pozostałych | I150: SFUE/8/61 | P150: 0 | Q150: 0
A151: B/I/1/2/3 | B151: Organizacja komunikacji, marketing, nadzór i kontrola ruchu | C151: 3 podzadanie | D151: NIE | E151: 600 | F151: 60004 | G151: 4388 | H151: Zakup usług obejmujących tłumaczenia | I151: SFUE/8/59 | P151: 0 | Q151: 0
A152: B/I/1/2/3 | B152: Organizacja komunikacji, marketing, nadzór i kontrola ruchu | C152: 3 podzadanie | D152: NIE | E152: 600 | F152: 60004 | G152: 4388 | H152: Zakup usług obejmujących tłumaczenia | I152: SFUE/8/60 | P152: 0 | Q152: 0
A153: B/I/1/2/3 | B153: Organizacja komunikacji, marketing, nadzór i kontrola ruchu | C153: 3 podzadanie | D153: NIE | E153: 600 | F153: 60004 | G153: 4388 | H153: Zakup usług obejmujących tłumaczenia | I153: SFUE/8/61 | P153: 0 | Q153: 0
A154: B/I/1/2/3 | B154: Organizacja komunikacji, marketing, nadzór i kontrola ruchu | C154: 3 podzadanie | D154: NIE | E154: 600 | F154: 60004 | G154: 4389 | H154: Zakup usług obejmujących tłumaczenia | I154: SFUE/8/61 | P154: 0 | Q154: 0
A155: B/I/1/2/3 | B155: Organizacja komunikacji, marketing, nadzór i kontrola ruchu | C155: 3 podzadanie | D155: NIE | E155: 600 | F155: 60004 | G155: 4390 | H155: Zakup usług obejmujących wykonanie ekspertyz, analiz i opinii | I155: GMMW | P155: 0 | Q155: 0
A156: B/I/1/2/3 | B156: Organizacja komunikacji, marketing, nadzór i kontrola ruchu | C156: 3 podzadanie | D156: NIE | E156: 600 | F156: 60004 | G156: 4398 | H156: Zakup usług obejmujących wykonanie ekspertyz, analiz i opinii | I156: SFUE/19/6 | P156: 0 | Q156: 0
A157: B/I/1/2/3 | B157: Organizacja komunikacji, marketing, nadzór i kontrola ruchu | C157: 3 podzadanie | D157: NIE | E157: 600 | F157: 60004 | G157: 4398 | H157: Zakup usług obejmujących wykonanie ekspertyz, analiz i opinii | I157: SFUE/8/59 | P157: 0 | Q157: 0
A158: B/I/1/2/3 | B158: Organizacja komunikacji, marketing, nadzór i kontrola ruchu | C158: 3 podzadanie | D158: NIE | E158: 600 | F158: 60004 | G158: 4398 | H158: Zakup usług obejmujących wykonanie ekspertyz, analiz i opinii | I158: SFUE/8/60 | P158: 0 | Q158: 0
A159: B/I/1/2/3 | B159: Organizacja komunikacji, marketing, nadzór i kontrola ruchu | C159: 3 podzadanie | D159: NIE | E159: 600 | F159: 60004 | G159: 4398 | H159: Zakup usług obejmujących wykonanie ekspertyz, analiz i opinii | I159: SFUE/8/61 | P159: 0 | Q159: 0
A160: B/I/1/2/3 | B160: Organizacja komunikacji, marketing, nadzór i kontrola ruchu | C160: 3 podzadanie | D160: NIE | E160: 600 | F160: 60004 | G160: 4399 | H160: Zakup usług obejmujących wykonanie ekspertyz, analiz i opinii | I160: SFUE/8/61 | P160: 0 | Q160: 0
A161: B/I/1/2/3 | B161: Organizacja komunikacji, marketing, nadzór i kontrola ruchu | C161: 3 podzadanie | D161: NIE | E161: 600 | F161: 60004 | G161: 4399 | H161: Zakup usług obejmujących wykonanie ekspertyz, analiz i opinii | J161: =SUM(J162:J164) -> 0 | K161: 0 | L161: 0 | M161: 0 | N161: 0 | O161: 0 | P161: 0 | Q161: 0
A162: B/I/1/2/3 | B162: Organizacja komunikacji, marketing, nadzór i kontrola ruchu | C162: 3 podzadanie | D162: NIE | E162: 600 | F162: 60004 | G162: 4399 | H162: +000 | I162: SFUE/19/6 | P162: 0 | Q162: 0
A163: B/I/1/2/3 | B163: Organizacja komunikacji, marketing, nadzór i kontrola ruchu | C163: 3 podzadanie | D163: NIE | E163: 600 | F163: 60004 | G163: 4399 | H163: +001 | I163: SFUE/19/6 | P163: 0 | Q163: 0
A164: B/I/1/2/3 | B164: Organizacja komunikacji, marketing, nadzór i kontrola ruchu | C164: 3 podzadanie | D164: NIE | E164: 600 | F164: 60004 | G164: 4399 | H164: +002 | I164: SFUE/19/6 | P164: 0 | Q164: 0
A165: B/I/1/2/3 | B165: Organizacja komunikacji, marketing, nadzór i kontrola ruchu | C165: 3 podzadanie | D165: NIE | E165: 600 | F165: 60004 | G165: 4530 | H165: Podatek od towarów i usług (VAT) | I165: GMMW | P165: 0 | Q165: 0
A166: B/I/1/2/3 | B166: Organizacja komunikacji, marketing, nadzór i kontrola ruchu | C166: 3 podzadanie | D166: NIE | E166: 600 | F166: 60004 | G166: 4530 | H166: Podatek od towarów i usług (VAT) | I166: SFUE/23/6 | P166: 0 | Q166: 0
A167: B/I/1/2/3 | B167: Organizacja komunikacji, marketing, nadzór i kontrola ruchu | C167: 3 podzadanie | D167: NIE | E167: 600 | F167: 60004 | G167: 4538 | H167: Podatek od towarów i usług (VAT) | I167: SFUE/19/6 | P167: 0 | Q167: 0
A168: B/I/1/2/3 | B168: Organizacja komunikacji, marketing, nadzór i kontrola ruchu | C168: 3 podzadanie | D168: NIE | E168: 600 | F168: 60004 | G168: 4539 | H168: Podatek od towarów i usług (VAT) | J168: =SUM(J169:J171) -> 0 | K168: 0 | L168: 0 | M168: 0 | N168: 0 | O168: 0 | P168: 0 | Q168: 0
A169: B/I/1/2/3 | B169: Organizacja komunikacji, marketing, nadzór i kontrola ruchu | C169: 3 podzadanie | D169: NIE | E169: 600 | F169: 60004 | G169: 4539 | H169: +000 | I169: SFUE/19/6 | P169: 0 | Q169: 0
A170: B/I/1/2/3 | B170: Organizacja komunikacji, marketing, nadzór i kontrola ruchu | C170: 3 podzadanie | D170: NIE | E170: 600 | F170: 60004 | G170: 4539 | H170: +001 | I170: SFUE/19/6 | P170: 0 | Q170: 0
A171: B/I/1/2/3 | B171: Organizacja komunikacji, marketing, nadzór i kontrola ruchu | C171: 3 podzadanie | D171: NIE | E171: 600 | F171: 60004 | G171: 4539 | H171: +002 | I171: SFUE/19/6 | P171: 0 | Q171: 0
A172: B/I/1/2/3 | B172: Organizacja komunikacji, marketing, nadzór i kontrola ruchu | C172: 3 podzadanie | D172: NIE | E172: 600 | F172: 60022 | J172: =SUM(J173:J176) -> 0 | K172: 0 | L172: 0 | M172: 0 | N172: 0 | O172: 0 | P172: 0 | Q172: 0
A173: B/I/1/2/3 | B173: Organizacja komunikacji, marketing, nadzór i kontrola ruchu | C173: 3 podzadanie | D173: NIE | E173: 600 | F173: 60022 | G173: 4210 | H173: Zakup materiałów i wyposażenia | I173: GMMW | P173: 0 | Q173: 0
A174: B/I/1/2/3 | B174: Organizacja komunikacji, marketing, nadzór i kontrola ruchu | C174: 3 podzadanie | D174: NIE | E174: 600 | F174: 60022 | G174: 4270 | H174: Zakup usług remontowych | I174: GMMW | P174: 0 | Q174: 0
A175: B/I/1/2/3 | B175: Organizacja komunikacji, marketing, nadzór i kontrola ruchu | C175: 3 podzadanie | D175: NIE | E175: 600 | F175: 60022 | G175: 4300 | H175: Zakup usług pozostałych | I175: GMMW | P175: 0 | Q175: 0
A176: B/I/1/2/3 | B176: Organizacja komunikacji, marketing, nadzór i kontrola ruchu | C176: 3 podzadanie | D176: NIE | E176: 600 | F176: 60022 | G176: 4430 | H176: Różne opłaty i składki | I176: GMMW | P176: 0 | Q176: 0
A177: B/I/1/2/3 | B177: Organizacja komunikacji, marketing, nadzór i kontrola ruchu | C177: 3 podzadanie | D177: NIE | E177: 600 | F177: 60095 | J177: =SUM(J178:J181) -> 0 | K177: 0 | L177: 0 | M177: 0 | N177: 0 | O177: 0 | P177: 0 | Q177: 0
A178: B/I/1/2/3 | B178: Organizacja komunikacji, marketing, nadzór i kontrola ruchu | C178: 3 podzadanie | D178: NIE | E178: 600 | F178: 60095 | G178: 4210 | H178: Zakup materiałów i wyposażenia | I178: BO/25/01/0038 | P178: 0 | Q178: 0
A179: B/I/1/2/3 | B179: Organizacja komunikacji, marketing, nadzór i kontrola ruchu | C179: 3 podzadanie | D179: NIE | E179: 600 | F179: 60095 | G179: 4210 | H179: Zakup materiałów i wyposażenia | I179: GMMW | P179: 0 | Q179: 0
A180: B/I/1/2/3 | B180: Organizacja komunikacji, marketing, nadzór i kontrola ruchu | C180: 3 podzadanie | D180: NIE | E180: 600 | F180: 60095 | G180: 4270 | H180: Zakup usług remontowych | I180: GMMW | P180: 0 | Q180: 0
A181: B/I/1/2/3 | B181: Organizacja komunikacji, marketing, nadzór i kontrola ruchu | C181: 3 podzadanie | D181: NIE | E181: 600 | F181: 60095 | G181: 4300 | H181: Zakup usług pozostałych | I181: GMMW | P181: 0 | Q181: 0
A182: B/I/1/3 | B182: Utrzymanie infrastruktury przystankowej | C182: 3 zadanie | D182: T | J182: =SUM(J183) -> 0 | K182: 0 | L182: 0 | M182: 0 | N182: 0 | O182: 0 | P182: 0 | Q182: 0
A183: B/I/1/3 | B183: Utrzymanie infrastruktury przystankowej | C183: 3 zadanie | D183: NIE | E183: 600 | F183: 60020 | J183: =SUM(J184:J192) -> 0 | K183: 0 | L183: 0 | M183: 0 | N183: 0 | O183: 0 | P183: 0 | Q183: 0
A184: B/I/1/3 | B184: Utrzymanie infrastruktury przystankowej | C184: 3 zadanie | D184: NIE | E184: 600 | F184: 60020 | G184: 4210 | H184: Zakup materiałów i wyposażenia | I184: GMMW | P184: 0 | Q184: 0
A185: B/I/1/3 | B185: Utrzymanie infrastruktury przystankowej | C185: 3 zadanie | D185: NIE | E185: 600 | F185: 60020 | G185: 4270 | H185: Zakup usług remontowych | I185: GMMW/C | P185: 0 | Q185: 0
A186: B/I/1/3 | B186: Utrzymanie infrastruktury przystankowej | C186: 3 zadanie | D186: NIE | E186: 600 | F186: 60020 | G186: 4270 | H186: Zakup usług remontowych | I186: GMMW | P186: 0 | Q186: 0
A187: B/I/1/3 | B187: Utrzymanie infrastruktury przystankowej | C187: 3 zadanie | D187: NIE | E187: 600 | F187: 60020 | G187: 4270 | H187: Zakup usług remontowych | I187: GUPP | P187: 0 | Q187: 0
A188: B/I/1/3 | B188: Utrzymanie infrastruktury przystankowej | C188: 3 zadanie | D188: NIE | E188: 600 | F188: 60020 | G188: 4300 | H188: Zakup usług pozostałych | I188: GMMW/C | P188: 0 | Q188: 0
A189: B/I/1/3 | B189: Utrzymanie infrastruktury przystankowej | C189: 3 zadanie | D189: NIE | E189: 600 | F189: 60020 | G189: 4300 | H189: Zakup usług pozostałych | I189: GMMW | P189: 0 | Q189: 0
A190: B/I/1/3 | B190: Utrzymanie infrastruktury przystankowej | C190: 3 zadanie | D190: NIE | E190: 600 | F190: 60020 | G190: 4520 | H190: Opłaty na rzecz budżetów jednostek samorządu terytorialnego | I190: GMMW | P190: 0 | Q190: 0
A191: B/I/1/3 | B191: Utrzymanie infrastruktury przystankowej | C191: 3 zadanie | D191: NIE | E191: 600 | F191: 60020 | G191: 4530 | H191: Podatek od towarów i usług (VAT) | I191: GMMW/C | P191: 0 | Q191: 0
A192: B/I/1/3 | B192: Utrzymanie infrastruktury przystankowej | C192: 3 zadanie | D192: NIE | E192: 600 | F192: 60020 | G192: 4530 | H192: Podatek od towarów i usług (VAT) | I192: GMMW | P192: 0 | Q192: 0
A193: B/I/1/4 | B193: Opracowania i analizy związane z komunikacją miejską | C193: 4 zadanie | D193: T | J193: =SUM(J200,J194) -> 0 | K193: 0 | L193: 0 | M193: 0 | N193: 0 | O193: 0 | P193: 0 | Q193: 0
A194: B/I/1/4 | B194: Opracowania i analizy związane z komunikacją miejską | C194: 4 zadanie | D194: NIE | E194: 600 | F194: 60004 | J194: =SUM(J195:J199) -> 0 | K194: 0 | L194: 0 | M194: 0 | N194: 0 | O194: 0 | P194: 0 | Q194: 0
A195: B/I/1/4 | B195: Opracowania i analizy związane z komunikacją miejską | C195: 4 zadanie | D195: NIE | E195: 600 | F195: 60004 | G195: 2310 | H195: Dotacja celowa przekazana gminie na zadania bieżące realizowane na podstawie porozumień (umów) między jednostkami samorządu terytorialnego | I195: GMMW | P195: 0 | Q195: 0
A196: B/I/1/4 | B196: Opracowania i analizy związane z komunikacją miejską | C196: 4 zadanie | D196: NIE | E196: 600 | F196: 60004 | G196: 4390 | H196: Zakup usług obejmujących wykonanie ekspertyz, analiz i opinii | I196: SFUE/8/57 | P196: 0 | Q196: 0
A197: B/I/1/4 | B197: Opracowania i analizy związane z komunikacją miejską | C197: 4 zadanie | D197: NIE | E197: 600 | F197: 60004 | G197: 4397 | H197: Zakup usług obejmujących wykonanie ekspertyz, analiz i opinii | I197: SFUE/8/57 | P197: 0 | Q197: 0
A198: B/I/1/4 | B198: Opracowania i analizy związane z komunikacją miejską | C198: 4 zadanie | D198: NIE | E198: 600 | F198: 60004 | G198: 4399 | H198: Zakup usług obejmujących wykonanie ekspertyz, analiz i opinii | I198: SFUE/8/57 | P198: 0 | Q198: 0
A199: B/I/1/4 | B199: Opracowania i analizy związane z komunikacją miejską | C199: 4 zadanie | D199: NIE | E199: 600 | F199: 60004 | G199: 4530 | H199: Podatek od towarów i usług (VAT) | I199: SFUE/8/57 | P199: 0 | Q199: 0
A200: B/I/1/4 | B200: Opracowania i analizy związane z komunikacją miejską | C200: 4 zadanie | D200: NIE | E200: 600 | F200: 60095 | J200: =SUM(J201:J203) -> 0 | K200: 0 | L200: 0 | M200: 0 | N200: 0 | O200: 0 | P200: 0 | Q200: 0
... 4300 more rows

Sheet KLASYCZNY
A1: PLAN WYDATKÓW w UKŁADZIE KLASYCZNYM | J1: Załącznik Nr 2b do Uchwały Nr XIII/96/2025 Rady Dzielnicy Białołęka m.st. Warszawy z dnia 16 kwietnia 2025 r. | Q1: 9267
D3: =ZADANIOWY!F2 -> 0 | E3: =E9264 -> 959544107 | F3: 449087728 | G3: 13885418 | H3: 14152327 | I3: 13812620 | J3: 12128235 | K3: 959811016 | L3: 447403343
A4: Dział | B4: Rozdział | C4: § | D4: Wyszczególnienie | E4: PLAN | F4: w tym Urząd m.st. Warszawy | G4: PLAN Zmiana[-] | H4: PLAN Zmiana[+] | I4: w tym Urząd Zmiana[-] | J4: w tym Urząd Zmiana[+] | K4: PLAN PO ZMIANIE | L4: w tym Urząd PO ZMIANIE | M4: Pozycja wypełniona | N4: Zmiany wypełnione | O4: =IF(COUNTIF(O5:O164,"błędny urząd")<>0,"ŹLE","") ->  | P4: =IF(COUNTIF(P5:P164,"ujemny plan")<>0,"ŹLE","") -> 
A5: 010 | D5: Rolnictwo i łowiectwo | E5: =SUM(E6,E15) -> 0 | F5: 0 | G5: 0 | H5: 0 | I5: 0 | J5: 0 | K5: 0 | L5: 0 | M5: =IF(SUM(E5:L5)>0,"Tak","") ->  | N5: =IF(SUM(G5:J5)>0,"Tak","") ->  | O5: =IF(OR(E5<F5,K5<L5,G5<I5,H5<J5),"błędny urząd","") ->  | P5: =IF(OR(E5<0,F5<0,K5<0,L5<0),"ujemny plan","") -> 
D6: WYDATKI BIEŻĄCE | E6: =SUM(E7,E10:E14) -> 0 | F6: 0 | G6: 0 | H6: 0 | I6: 0 | J6: 0 | K6: 0 | L6: 0
D7: Wydatki jednostek budżetowych w tym na: | E7: =SUM(E8:E9) -> 0 | F7: 0 | G7: 0 | H7: 0 | I7: 0 | J7: 0 | K7: 0 | L7: 0
D8: wynagrodzenia i składki od nich naliczane | E8: =SUM(E19,E33,E45,E57) -> 0 | F8: 0 | G8: 0 | H8: 0 | I8: 0 | J8: 0 | K8: 0 | L8: 0
D9: wydatki związane z realizacją ich zadań statutowych | E9: 0 | F9: 0 | G9: 0 | H9: 0 | I9: 0 | J9: 0 | K9: 0 | L9: 0
D10: Dotacje na zadania bieżące | E10: 0 | F10: 0 | G10: 0 | H10: 0 | I10: 0 | J10: 0 | K10: 0 | L10: 0
D11: Świadczenia na rzecz osób fizycznych | E11: 0 | F11: 0 | G11: 0 | H11: 0 | I11: 0 | J11: 0 | K11: 0 | L11: 0
D12: Wydatki na programy finansowane z UE | E12: 0 | F12: 0 | G12: 0 | H12: 0 | I12: 0 | J12: 0 | K12: 0 | L12: 0
D13: Obsługa długu | E13: 0 | F13: 0 | G13: 0 | H13: 0 | I13: 0 | J13: 0 | K13: 0 | L13: 0
D14: Poręczenia i gwarancje | E14: 0 | F14: 0 | G14: 0 | H14: 0 | I14: 0 | J14: 0 | K14: 0 | L14: 0
D15: WYDATKI MAJĄTKOWE | E15: 0 | F15: 0 | G15: 0 | H15: 0 | I15: 0 | J15: 0 | K15: 0 | L15: 0
B16: 01005 | D16: Prace geodezyjno - urządzeniowe na potrzeby rolnictwa | E16: =SUM(E17,E26) -> 0 | F16: 0 | G16: 0 | H16: 0 | I16: 0 | J16: 0 | K16: 0 | L16: 0
D17: WYDATKI BIEŻĄCE | E17: =SUM(E18,E21:E25) -> 0 | F17: 0 | G17: 0 | H17: 0 | I17: 0 | J17: 0 | K17: 0 | L17: 0
D18: Wydatki jednostek budżetowych w tym na: | E18: =SUM(E19:E20) -> 0 | F18: 0 | G18: 0 | H18: 0 | I18: 0 | J18: 0 | K18: 0 | L18: 0
D19: wynagrodzenia i składki od nich naliczane
D20: wydatki związane z realizacją ich zadań statutowych | E20: =SUM(E27) -> 0 | F20: 0 | G20: 0 | H20: 0 | I20: 0 | J20: 0 | K20: 0 | L20: 0
D21: Dotacje na zadania bieżące
D22: Świadczenia na rzecz osób fizycznych
D23: Wydatki na programy finansowane z UE
D24: Obsługa długu
D25: Poręczenia i gwarancje
D26: WYDATKI MAJĄTKOWE
C27: 4300 | D27: Zakup usług pozostałych | E27: =SUM(E28:E29) -> 0 | F27: 0 | G27: 0 | H27: 0 | I27: 0 | J27: 0 | K27: 0 | L27: 0
D28: Środki z budżetu państwa | E28: =0 -> 0 | F28: =0 -> 0 | G28: =0 -> 0 | H28: =0 -> 0 | I28: =0 -> 0 | J28: =0 -> 0 | K28: =E28-G28+H28 -> 0 | L28: =F28-I28+J28 -> 0 | M28: =IF(SUM(E28:L28)>0,"Tak","") ->  | N28: =IF(SUM(G28:J28)>0,"Tak","") ->  | O28: =IF(OR(E28<F28,K28<L28,G28<I28,H28<J28),"błędny urząd","") ->  | P28: =IF(OR(E28<0,F28<0,K28<0,L28<0),"ujemny plan","") -> 
D29: Środki z budżetu miasta | E29: =0 -> 0 | F29: =0 -> 0 | G29: =0 -> 0 | H29: =0 -> 0 | I29: =0 -> 0 | J29: =0 -> 0 | K29: =E29-G29+H29 -> 0 | L29: =F29-I29+J29 -> 0 | M29: =IF(SUM(E29:L29)>0,"Tak","") ->  | N29: =IF(SUM(G29:J29)>0,"Tak","") ->  | O29: =IF(OR(E29<F29,K29<L29,G29<I29,H29<J29),"błędny urząd","") ->  | P29: =IF(OR(E29<0,F29<0,K29<0,L29<0),"ujemny plan","") -> 
B30: 01030 | D30: Izby rolnicze | E30: =SUM(E31,E40) -> 0 | F30: 0 | G30: 0 | H30: 0 | I30: 0 | J30: 0 | K30: 0 | L30: 0
D31: WYDATKI BIEŻĄCE | E31: =SUM(E32,E35:E39) -> 0 | F31: 0 | G31: 0 | H31: 0 | I31: 0 | J31: 0 | K31: 0 | L31: 0
D32: Wydatki jednostek budżetowych w tym na: | E32: =SUM(E33:E34) -> 0 | F32: 0 | G32: 0 | H32: 0 | I32: 0 | J32: 0 | K32: 0 | L32: 0
D33: wynagrodzenia i składki od nich naliczane
D34: wydatki związane z realizacją ich zadań statutowych | E34: =SUM(E41) -> 0 | F34: 0 | G34: 0 | H34: 0 | I34: 0 | J34: 0 | K34: 0 | L34: 0
D35: Dotacje na zadania bieżące
D36: Świadczenia na rzecz osób fizycznych
D37: Wydatki na programy finansowane z UE
D38: Obsługa długu
D39: Poręczenia i gwarancje
D40: WYDATKI MAJĄTKOWE
C41: 2850 | D41: Wpłaty gmin na rzecz izb rolniczych w wysokości 2% uzyskanych wpływów z podatku rolnego | E41: =0+ZADANIOWY!J2016 -> 0 | F41: =0+ZADANIOWY!K2016 -> 0 | G41: =0+ZADANIOWY!L2016 -> 0 | H41: =0+ZADANIOWY!M2016 -> 0 | I41: =0+ZADANIOWY!N2016 -> 0 | J41: =0+ZADANIOWY!O2016 -> 0 | K41: 0 | L41: 0
B42: 01078 | D42: Izby rolnicze | E42: =SUM(E43,E52) -> 0 | F42: 0 | G42: 0 | H42: 0 | I42: 0 | J42: 0 | K42: 0 | L42: 0
D43: WYDATKI BIEŻĄCE | E43: =SUM(E44,E47:E51) -> 0 | F43: 0 | G43: 0 | H43: 0 | I43: 0 | J43: 0 | K43: 0 | L43: 0
D44: Wydatki jednostek budżetowych w tym na: | E44: =SUM(E45:E46) -> 0 | F44: 0 | G44: 0 | H44: 0 | I44: 0 | J44: 0 | K44: 0 | L44: 0
D45: wynagrodzenia i składki od nich naliczane
D46: wydatki związane z realizacją ich zadań statutowych
D47: Dotacje na zadania bieżące | E47: =SUM(E53) -> 0 | F47: 0 | G47: 0 | H47: 0 | I47: 0 | J47: 0 | K47: 0 | L47: 0
D48: Świadczenia na rzecz osób fizycznych
D49: Wydatki na programy finansowane z UE
D50: Obsługa długu
D51: Poręczenia i gwarancje
D52: WYDATKI MAJĄTKOWE
C53: 2710 | D53: Dotacja celowa na pomoc finansową udzielaną między jednostkami samorządu terytorialnego na dofinansowanie własnych zadań bieżących | E53: =0 -> 0 | F53: =0 -> 0 | G53: =0 -> 0 | H53: =0 -> 0 | I53: =0 -> 0 | J53: =0 -> 0 | K53: 0 | L53: 0
B54: 01095 | D54: Pozostała działalność | E54: =SUM(E55,E64) -> 0 | F54: 0 | G54: 0 | H54: 0 | I54: 0 | J54: 0 | K54: 0 | L54: 0
D55: WYDATKI BIEŻĄCE | E55: =SUM(E56,E59:E63) -> 0 | F55: 0 | G55: 0 | H55: 0 | I55: 0 | J55: 0 | K55: 0 | L55: 0
D56: Wydatki jednostek budżetowych w tym na: | E56: =SUM(E57:E58) -> 0 | F56: 0 | G56: 0 | H56: 0 | I56: 0 | J56: 0 | K56: 0 | L56: 0
D57: wynagrodzenia i składki od nich naliczane | E57: =SUM(E65,E68,E71,E80) -> 0 | F57: 0 | G57: 0 | H57: 0 | I57: 0 | J57: 0 | K57: 0 | L57: 0
D58: wydatki związane z realizacją ich zadań statutowych | E58: =SUM(E74,E77) -> 0 | F58: 0 | G58: 0 | H58: 0 | I58: 0 | J58: 0 | K58: 0 | L58: 0
D59: Dotacje na zadania bieżące
D60: Świadczenia na rzecz osób fizycznych
D61: Wydatki na programy finansowane z UE
D62: Obsługa długu
D63: Poręczenia i gwarancje
D64: WYDATKI MAJĄTKOWE
C65: 4010 | D65: Wynagrodzenia osobowe pracowników | E65: =SUM(E66:E67) -> 0 | F65: 0 | G65: 0 | H65: 0 | I65: 0 | J65: 0 | K65: 0 | L65: 0
D66: Środki z budżetu państwa | E66: =0 -> 0 | F66: =0 -> 0 | G66: =0 -> 0 | H66: =0 -> 0 | I66: =0 -> 0 | J66: =0 -> 0 | K66: 0 | L66: 0
D67: Środki z budżetu miasta | E67: =0 -> 0 | F67: =0 -> 0 | G67: =0 -> 0 | H67: =0 -> 0 | I67: =0 -> 0 | J67: =0 -> 0 | K67: 0 | L67: 0
C68: 4110 | D68: Składki na ubezpieczenia społeczne | E68: =SUM(E69:E70) -> 0 | F68: 0 | G68: 0 | H68: 0 | I68: 0 | J68: 0 | K68: 0 | L68: 0
D69: Środki z budżetu państwa | E69: =0 -> 0 | F69: =0 -> 0 | G69: =0 -> 0 | H69: =0 -> 0 | I69: =0 -> 0 | J69: =0 -> 0 | K69: 0 | L69: 0
D70: Środki z budżetu miasta | E70: =0 -> 0 | F70: =0 -> 0 | G70: =0 -> 0 | H70: =0 -> 0 | I70: =0 -> 0 | J70: =0 -> 0 | K70: 0 | L70: 0
C71: 4120 | D71: Składki na Fundusz Pracy oraz Fundusz Solidarnościowy | E71: =SUM(E72:E73) -> 0 | F71: 0 | G71: 0 | H71: 0 | I71: 0 | J71: 0 | K71: 0 | L71: 0
D72: Środki z budżetu państwa | E72: =0 -> 0 | F72: =0 -> 0 | G72: =0 -> 0 | H72: =0 -> 0 | I72: =0 -> 0 | J72: =0 -> 0 | K72: 0 | L72: 0
D73: Środki z budżetu miasta | E73: =0 -> 0 | F73: =0 -> 0 | G73: =0 -> 0 | H73: =0 -> 0 | I73: =0 -> 0 | J73: =0 -> 0 | K73: 0 | L73: 0
C74: 4300 | D74: Zakup usług pozostałych | E74: =SUM(E75:E76) -> 0 | F74: 0 | G74: 0 | H74: 0 | I74: 0 | J74: 0 | K74: 0 | L74: 0
D75: Środki z budżetu państwa | E75: =0+ZADANIOWY!J2009 -> 0 | F75: =0+ZADANIOWY!K2009 -> 0 | G75: =0+ZADANIOWY!L2009 -> 0 | H75: =0+ZADANIOWY!M2009 -> 0 | I75: =0+ZADANIOWY!N2009 -> 0 | J75: =0+ZADANIOWY!O2009 -> 0 | K75: 0 | L75: 0
D76: Środki z budżetu miasta | E76: =0+ZADANIOWY!J2010 -> 0 | F76: =0+ZADANIOWY!K2010 -> 0 | G76: =0+ZADANIOWY!L2010 -> 0 | H76: =0+ZADANIOWY!M2010 -> 0 | I76: =0+ZADANIOWY!N2010 -> 0 | J76: =0+ZADANIOWY!O2010 -> 0 | K76: 0 | L76: 0
C77: 4430 | D77: Różne opłaty i składki | E77: =SUM(E78:E79) -> 0 | F77: 0 | G77: 0 | H77: 0 | I77: 0 | J77: 0 | K77: 0 | L77: 0
D78: Środki z budżetu państwa | E78: =0+ZADANIOWY!J2012 -> 0 | F78: =0+ZADANIOWY!K2012 -> 0 | G78: =0+ZADANIOWY!L2012 -> 0 | H78: =0+ZADANIOWY!M2012 -> 0 | I78: =0+ZADANIOWY!N2012 -> 0 | J78: =0+ZADANIOWY!O2012 -> 0 | K78: 0 | L78: 0
D79: Środki z budżetu miasta | E79: =0+ZADANIOWY!J2013 -> 0 | F79: =0+ZADANIOWY!K2013 -> 0 | G79: =0+ZADANIOWY!L2013 -> 0 | H79: =0+ZADANIOWY!M2013 -> 0 | I79: =0+ZADANIOWY!N2013 -> 0 | J79: =0+ZADANIOWY!O2013 -> 0 | K79: 0 | L79: 0
C80: 4710 | D80: Wpłaty na PPK finansowane przez podmiot zatrudniający | E80: =SUM(E81:E82) -> 0 | F80: 0 | G80: 0 | H80: 0 | I80: 0 | J80: 0 | K80: 0 | L80: 0
D81: Środki z budżetu państwa | E81: =0 -> 0 | F81: =0 -> 0 | G81: =0 -> 0 | H81: =0 -> 0 | I81: =0 -> 0 | J81: =0 -> 0 | K81: 0 | L81: 0
D82: Środki z budżetu miasta | E82: =0 -> 0 | F82: =0 -> 0 | G82: =0 -> 0 | H82: =0 -> 0 | I82: =0 -> 0 | J82: =0 -> 0 | K82: 0 | L82: 0
A83: 020 | D83: Leśnictwo | E83: =SUM(E84,E93) -> 0 | F83: 0 | G83: 0 | H83: 0 | I83: 0 | J83: 0 | K83: 0 | L83: 0
D84: WYDATKI BIEŻĄCE | E84: =SUM(E85,E88:E92) -> 0 | F84: 0 | G84: 0 | H84: 0 | I84: 0 | J84: 0 | K84: 0 | L84: 0
D85: Wydatki jednostek budżetowych w tym na: | E85: =SUM(E86:E87) -> 0 | F85: 0 | G85: 0 | H85: 0 | I85: 0 | J85: 0 | K85: 0 | L85: 0
D86: wynagrodzenia i składki od nich naliczane | E86: =SUM(E97,E147) -> 0 | F86: 0 | G86: 0 | H86: 0 | I86: 0 | J86: 0 | K86: 0 | L86: 0
D87: wydatki związane z realizacją ich zadań statutowych | E87: 0 | F87: 0 | G87: 0 | H87: 0 | I87: 0 | J87: 0 | K87: 0 | L87: 0
D88: Dotacje na zadania bieżące | E88: 0 | F88: 0 | G88: 0 | H88: 0 | I88: 0 | J88: 0 | K88: 0 | L88: 0
D89: Świadczenia na rzecz osób fizycznych | E89: 0 | F89: 0 | G89: 0 | H89: 0 | I89: 0 | J89: 0 | K89: 0 | L89: 0
D90: Wydatki na programy finansowane z UE | E90: 0 | F90: 0 | G90: 0 | H90: 0 | I90: 0 | J90: 0 | K90: 0 | L90: 0
D91: Obsługa długu | E91: 0 | F91: 0 | G91: 0 | H91: 0 | I91: 0 | J91: 0 | K91: 0 | L91: 0
D92: Poręczenia i gwarancje | E92: 0 | F92: 0 | G92: 0 | H92: 0 | I92: 0 | J92: 0 | K92: 0 | L92: 0
D93: WYDATKI MAJĄTKOWE | E93: 0 | F93: 0 | G93: 0 | H93: 0 | I93: 0 | J93: 0 | K93: 0 | L93: 0 | M93: =IF(SUM(E93:L93)>0,"Tak","") ->  | N93: =IF(SUM(G93:J93)>0,"Tak","") ->  | O93: =IF(OR(E93<F93,K93<L93,G93<I93,H93<J93),"błędny urząd","") ->  | P93: =IF(OR(E93<0,F93<0,K93<0,L93<0),"ujemny plan","") -> 
B94: 02001 | D94: Gospodarka leśna | E94: =SUM(E95,E104) -> 0 | F94: 0 | G94: 0 | H94: 0 | I94: 0 | J94: 0 | K94: 0 | L94: 0
D95: WYDATKI BIEŻĄCE | E95: =SUM(E96,E99:E103) -> 0 | F95: 0 | G95: 0 | H95: 0 | I95: 0 | J95: 0 | K95: 0 | L95: 0
D96: Wydatki jednostek budżetowych w tym na: | E96: =SUM(E97:E98) -> 0 | F96: 0 | G96: 0 | H96: 0 | I96: 0 | J96: 0 | K96: 0 | L96: 0
D97: wynagrodzenia i składki od nich naliczane | E97: =SUM(E106:E109,E111,E143) -> 0 | F97: 0 | G97: 0 | H97: 0 | I97: 0 | J97: 0 | K97: 0 | L97: 0
D98: wydatki związane z realizacją ich zadań statutowych | E98: =SUM(E110,E112:E113,E116:E121,E124:E142) -> 0 | F98: 0 | G98: 0 | H98: 0 | I98: 0 | J98: 0 | K98: 0 | L98: 0
D99: Dotacje na zadania bieżące
D100: Świadczenia na rzecz osób fizycznych | E100: =SUM(E105) -> 0 | F100: 0 | G100: 0 | H100: 0 | I100: 0 | J100: 0 | K100: 0 | L100: 0
D101: Wydatki na programy finansowane z UE | E101: =SUM(E114:E115,E122:E123) -> 0 | F101: 0 | G101: 0 | H101: 0 | I101: 0 | J101: 0 | K101: 0 | L101: 0
D102: Obsługa długu
D103: Poręczenia i gwarancje
D104: WYDATKI MAJĄTKOWE
C105: 3020 | D105: Wydatki osobowe niezaliczone do wynagrodzeń | E105: =0+ZADANIOWY!J1919 -> 0 | F105: =0+ZADANIOWY!K1919 -> 0 | G105: =0+ZADANIOWY!L1919 -> 0 | H105: =0+ZADANIOWY!M1919 -> 0 | I105: =0+ZADANIOWY!N1919 -> 0 | J105: =0+ZADANIOWY!O1919 -> 0 | K105: =E105-G105+H105 -> 0 | L105: =F105-I105+J105 -> 0
C106: 4010 | D106: Wynagrodzenia osobowe pracowników | E106: =0+ZADANIOWY!J1920 -> 0 | F106: =0+ZADANIOWY!K1920 -> 0 | G106: =0+ZADANIOWY!L1920 -> 0 | H106: =0+ZADANIOWY!M1920 -> 0 | I106: =0+ZADANIOWY!N1920 -> 0 | J106: =0+ZADANIOWY!O1920 -> 0 | K106: 0 | L106: 0
C107: 4040 | D107: Dodatkowe wynagrodzenie roczne | E107: =0+ZADANIOWY!J1921 -> 0 | F107: =0+ZADANIOWY!K1921 -> 0 | G107: =0+ZADANIOWY!L1921 -> 0 | H107: =0+ZADANIOWY!M1921 -> 0 | I107: =0+ZADANIOWY!N1921 -> 0 | J107: =0+ZADANIOWY!O1921 -> 0 | K107: 0 | L107: 0
C108: 4110 | D108: Składki na ubezpieczenia społeczne | E108: =0+ZADANIOWY!J1922 -> 0 | F108: =0+ZADANIOWY!K1922 -> 0 | G108: =0+ZADANIOWY!L1922 -> 0 | H108: =0+ZADANIOWY!M1922 -> 0 | I108: =0+ZADANIOWY!N1922 -> 0 | J108: =0+ZADANIOWY!O1922 -> 0 | K108: 0 | L108: 0
C109: 4120 | D109: Składki na Fundusz Pracy oraz Fundusz Solidarnościowy | E109: =0+ZADANIOWY!J1923 -> 0 | F109: =0+ZADANIOWY!K1923 -> 0 | G109: =0+ZADANIOWY!L1923 -> 0 | H109: =0+ZADANIOWY!M1923 -> 0 | I109: =0+ZADANIOWY!N1923 -> 0 | J109: =0+ZADANIOWY!O1923 -> 0 | K109: 0 | L109: 0
C110: 4140 | D110: Wpłaty na Państwowy Fundusz Rehabilitacji Osób Niepełnosprawnych | E110: =0+ZADANIOWY!J1924 -> 0 | F110: =0+ZADANIOWY!K1924 -> 0 | G110: =0+ZADANIOWY!L1924 -> 0 | H110: =0+ZADANIOWY!M1924 -> 0 | I110: =0+ZADANIOWY!N1924 -> 0 | J110: =0+ZADANIOWY!O1924 -> 0 | K110: 0 | L110: 0
C111: 4170 | D111: Wynagrodzenia bezosobowe | E111: =0+ZADANIOWY!J1925+ZADANIOWY!J1926+ZADANIOWY!J1927 -> 0 | F111: =0+ZADANIOWY!K1925+ZADANIOWY!K1926+ZADANIOWY!K1927 -> 0 | G111: =0+ZADANIOWY!L1925+ZADANIOWY!L1926+ZADANIOWY!L1927 -> 0 | H111: =0+ZADANIOWY!M1925+ZADANIOWY!M1926+ZADANIOWY!M1927 -> 0 | I111: =0+ZADANIOWY!N1925+ZADANIOWY!N1926+ZADANIOWY!N1927 -> 0 | J111: =0+ZADANIOWY!O1925+ZADANIOWY!O1926+ZADANIOWY!O1927 -> 0 | K111: 0 | L111: 0
C112: 4190 | D112: Nagrody konkursowe | E112: =0 -> 0 | F112: =0 -> 0 | G112: =0 -> 0 | H112: =0 -> 0 | I112: =0 -> 0 | J112: =0 -> 0 | K112: 0 | L112: 0
C113: 4210 | D113: Zakup materiałów i wyposażenia | E113: =0+ZADANIOWY!J1928+ZADANIOWY!J1929+ZADANIOWY!J1930+ZADANIOWY!J1931+ZADANIOWY!J1932+ZADANIOWY!J1933+ZADANIOWY!J1934 -> 0 | F113: =0+ZADANIOWY!K1928+ZADANIOWY!K1929+ZADANIOWY!K1930+ZADANIOWY!K1931+ZADANIOWY!K1932+ZADANIOWY!K1933+ZADANIOWY!K1934 -> 0 | G113: =0+ZADANIOWY!L1928+ZADANIOWY!L1929+ZADANIOWY!L1930+ZADANIOWY!L1931+ZADANIOWY!L1932+ZADANIOWY!L1933+ZADANIOWY!L1934 -> 0 | H113: =0+ZADANIOWY!M1928+ZADANIOWY!M1929+ZADANIOWY!M1930+ZADANIOWY!M1931+ZADANIOWY!M1932+ZADANIOWY!M1933+ZADANIOWY!M1934 -> 0 | I113: =0+ZADANIOWY!N1928+ZADANIOWY!N1929+ZADANIOWY!N1930+ZADANIOWY!N1931+ZADANIOWY!N1932+ZADANIOWY!N1933+ZADANIOWY!N1934 -> 0 | J113: =0+ZADANIOWY!O1928+ZADANIOWY!O1929+ZADANIOWY!O1930+ZADANIOWY!O1931+ZADANIOWY!O1932+ZADANIOWY!O1933+ZADANIOWY!O1934 -> 0 | K113: 0 | L113: 0
C114: 4217 | D114: Zakup materiałów i wyposażenia | E114: =0 -> 0 | F114: =0 -> 0 | G114: =0 -> 0 | H114: =0 -> 0 | I114: =0 -> 0 | J114: =0 -> 0 | K114: 0 | L114: 0
C115: 4219 | D115: Zakup materiałów i wyposażenia | E115: =0 -> 0 | F115: =0 -> 0 | G115: =0 -> 0 | H115: =0 -> 0 | I115: =0 -> 0 | J115: =0 -> 0 | K115: 0 | L115: 0
C116: 4220 | D116: Zakup środków żywności | E116: =0+ZADANIOWY!J1935+ZADANIOWY!J1936 -> 0 | F116: =0+ZADANIOWY!K1935+ZADANIOWY!K1936 -> 0 | G116: =0+ZADANIOWY!L1935+ZADANIOWY!L1936 -> 0 | H116: =0+ZADANIOWY!M1935+ZADANIOWY!M1936 -> 0 | I116: =0+ZADANIOWY!N1935+ZADANIOWY!N1936 -> 0 | J116: =0+ZADANIOWY!O1935+ZADANIOWY!O1936 -> 0 | K116: 0 | L116: 0
C117: 4240 | D117: Zakup środków dydaktycznych i książek | E117: =0 -> 0 | F117: =0 -> 0 | G117: =0 -> 0 | H117: =0 -> 0 | I117: =0 -> 0 | J117: =0 -> 0 | K117: 0 | L117: 0
C118: 4260 | D118: Zakup energii | E118: =0+ZADANIOWY!J1937 -> 0 | F118: =0+ZADANIOWY!K1937 -> 0 | G118: =0+ZADANIOWY!L1937 -> 0 | H118: =0+ZADANIOWY!M1937 -> 0 | I118: =0+ZADANIOWY!N1937 -> 0 | J118: =0+ZADANIOWY!O1937 -> 0 | K118: 0 | L118: 0
C119: 4270 | D119: Zakup usług remontowych | E119: =0+ZADANIOWY!J1938 -> 0 | F119: =0+ZADANIOWY!K1938 -> 0 | G119: =0+ZADANIOWY!L1938 -> 0 | H119: =0+ZADANIOWY!M1938 -> 0 | I119: =0+ZADANIOWY!N1938 -> 0 | J119: =0+ZADANIOWY!O1938 -> 0 | K119: 0 | L119: 0
C120: 4280 | D120: Zakup usług zdrowotnych | E120: =0+ZADANIOWY!J1939 -> 0 | F120: =0+ZADANIOWY!K1939 -> 0 | G120: =0+ZADANIOWY!L1939 -> 0 | H120: =0+ZADANIOWY!M1939 -> 0 | I120: =0+ZADANIOWY!N1939 -> 0 | J120: =0+ZADANIOWY!O1939 -> 0 | K120: 0 | L120: 0
C121: 4300 | D121: Zakup usług pozostałych | E121: =0+ZADANIOWY!J1940+ZADANIOWY!J1941+ZADANIOWY!J1942+ZADANIOWY!J1943+ZADANIOWY!J1944+ZADANIOWY!J1945 -> 0 | F121: =0+ZADANIOWY!K1940+ZADANIOWY!K1941+ZADANIOWY!K1942+ZADANIOWY!K1943+ZADANIOWY!K1944+ZADANIOWY!K1945 -> 0 | G121: =0+ZADANIOWY!L1940+ZADANIOWY!L1941+ZADANIOWY!L1942+ZADANIOWY!L1943+ZADANIOWY!L1944+ZADANIOWY!L1945 -> 0 | H121: =0+ZADANIOWY!M1940+ZADANIOWY!M1941+ZADANIOWY!M1942+ZADANIOWY!M1943+ZADANIOWY!M1944+ZADANIOWY!M1945 -> 0 | I121: =0+ZADANIOWY!N1940+ZADANIOWY!N1941+ZADANIOWY!N1942+ZADANIOWY!N1943+ZADANIOWY!N1944+ZADANIOWY!N1945 -> 0 | J121: =0+ZADANIOWY!O1940+ZADANIOWY!O1941+ZADANIOWY!O1942+ZADANIOWY!O1943+ZADANIOWY!O1944+ZADANIOWY!O1945 -> 0 | K121: 0 | L121: 0
C122: 4307 | D122: Zakup usług pozostałych | E122: =0 -> 0 | F122: =0 -> 0 | G122: =0 -> 0 | H122: =0 -> 0 | I122: =0 -> 0 | J122: =0 -> 0 | K122: 0 | L122: 0
C123: 4309 | D123: Zakup usług pozostałych | E123: =0 -> 0 | F123: =0 -> 0 | G123: =0 -> 0 | H123: =0 -> 0 | I123: =0 -> 0 | J123: =0 -> 0 | K123: 0 | L123: 0
C124: 4360 | D124: Opłaty z tytułu zakupu usług telekomunikacyjnych | E124: =0+ZADANIOWY!J1946 -> 0 | F124: =0+ZADANIOWY!K1946 -> 0 | G124: =0+ZADANIOWY!L1946 -> 0 | H124: =0+ZADANIOWY!M1946 -> 0 | I124: =0+ZADANIOWY!N1946 -> 0 | J124: =0+ZADANIOWY!O1946 -> 0 | K124: 0 | L124: 0
C125: 4380 | D125: Zakup usług obejmujących tłumaczenia | E125: =0 -> 0 | F125: =0 -> 0 | G125: =0 -> 0 | H125: =0 -> 0 | I125: =0 -> 0 | J125: =0 -> 0 | K125: 0 | L125: 0
C126: 4390 | D126: Zakup usług obejmujących wykonanie ekspertyz, analiz i opinii | E126: =0+ZADANIOWY!J1947+ZADANIOWY!J1948 -> 0 | F126: =0+ZADANIOWY!K1947+ZADANIOWY!K1948 -> 0 | G126: =0+ZADANIOWY!L1947+ZADANIOWY!L1948 -> 0 | H126: =0+ZADANIOWY!M1947+ZADANIOWY!M1948 -> 0 | I126: =0+ZADANIOWY!N1947+ZADANIOWY!N1948 -> 0 | J126: =0+ZADANIOWY!O1947+ZADANIOWY!O1948 -> 0 | K126: 0 | L126: 0
C127: 4400 | D127: Opłaty za administrowanie i czynsze za budynki, lokale i pomieszczenia garażowe | E127: =0+ZADANIOWY!J1949 -> 0 | F127: =0+ZADANIOWY!K1949 -> 0 | G127: =0+ZADANIOWY!L1949 -> 0 | H127: =0+ZADANIOWY!M1949 -> 0 | I127: =0+ZADANIOWY!N1949 -> 0 | J127: =0+ZADANIOWY!O1949 -> 0 | K127: 0 | L127: 0
C128: 4410 | D128: Podróże służbowe krajowe | E128: =0+ZADANIOWY!J1950 -> 0 | F128: =0+ZADANIOWY!K1950 -> 0 | G128: =0+ZADANIOWY!L1950 -> 0 | H128: =0+ZADANIOWY!M1950 -> 0 | I128: =0+ZADANIOWY!N1950 -> 0 | J128: =0+ZADANIOWY!O1950 -> 0 | K128: 0 | L128: 0
C129: 4420 | D129: Podróże służbowe zagraniczne | E129: =0 -> 0 | F129: =0 -> 0 | G129: =0 -> 0 | H129: =0 -> 0 | I129: =0 -> 0 | J129: =0 -> 0 | K129: 0 | L129: 0
C130: 4430 | D130: Różne opłaty i składki | E130: =0+ZADANIOWY!J1951 -> 0 | F130: =0+ZADANIOWY!K1951 -> 0 | G130: =0+ZADANIOWY!L1951 -> 0 | H130: =0+ZADANIOWY!M1951 -> 0 | I130: =0+ZADANIOWY!N1951 -> 0 | J130: =0+ZADANIOWY!O1951 -> 0 | K130: 0 | L130: 0
C131: 4440 | D131: Odpisy na zakładowy fundusz świadczeń socjalnych | E131: =0+ZADANIOWY!J1952 -> 0 | F131: =0+ZADANIOWY!K1952 -> 0 | G131: =0+ZADANIOWY!L1952 -> 0 | H131: =0+ZADANIOWY!M1952 -> 0 | I131: =0+ZADANIOWY!N1952 -> 0 | J131: =0+ZADANIOWY!O1952 -> 0 | K131: 0 | L131: 0
C132: 4480 | D132: Podatek od nieruchomości | E132: =0+ZADANIOWY!J1953 -> 0 | F132: =0+ZADANIOWY!K1953 -> 0 | G132: =0+ZADANIOWY!L1953 -> 0 | H132: =0+ZADANIOWY!M1953 -> 0 | I132: =0+ZADANIOWY!N1953 -> 0 | J132: =0+ZADANIOWY!O1953 -> 0 | K132: 0 | L132: 0
C133: 4500 | D133: Pozostałe podatki na rzecz budżetów jednostek samorządu terytorialnego | E133: =0+ZADANIOWY!J1954 -> 0 | F133: =0+ZADANIOWY!K1954 -> 0 | G133: =0+ZADANIOWY!L1954 -> 0 | H133: =0+ZADANIOWY!M1954 -> 0 | I133: =0+ZADANIOWY!N1954 -> 0 | J133: =0+ZADANIOWY!O1954 -> 0 | K133: 0 | L133: 0
C134: 4510 | D134: Opłaty na rzecz budżetu państwa | E134: =0+ZADANIOWY!J1955 -> 0 | F134: =0+ZADANIOWY!K1955 -> 0 | G134: =0+ZADANIOWY!L1955 -> 0 | H134: =0+ZADANIOWY!M1955 -> 0 | I134: =0+ZADANIOWY!N1955 -> 0 | J134: =0+ZADANIOWY!O1955 -> 0 | K134: 0 | L134: 0
C135: 4520 | D135: Opłaty na rzecz budżetów jednostek samorządu terytorialnego | E135: =0+ZADANIOWY!J1956 -> 0 | F135: =0+ZADANIOWY!K1956 -> 0 | G135: =0+ZADANIOWY!L1956 -> 0 | H135: =0+ZADANIOWY!M1956 -> 0 | I135: =0+ZADANIOWY!N1956 -> 0 | J135: =0+ZADANIOWY!O1956 -> 0 | K135: 0 | L135: 0
C136: 4530 | D136: Podatek od towarów i usług (VAT) | E136: =0+ZADANIOWY!J1957 -> 0 | F136: =0+ZADANIOWY!K1957 -> 0 | G136: =0+ZADANIOWY!L1957 -> 0 | H136: =0+ZADANIOWY!M1957 -> 0 | I136: =0+ZADANIOWY!N1957 -> 0 | J136: =0+ZADANIOWY!O1957 -> 0 | K136: 0 | L136: 0
C137: 4580 | D137: Pozostałe odsetki | E137: =0+ZADANIOWY!J1958 -> 0 | F137: =0+ZADANIOWY!K1958 -> 0 | G137: =0+ZADANIOWY!L1958 -> 0 | H137: =0+ZADANIOWY!M1958 -> 0 | I137: =0+ZADANIOWY!N1958 -> 0 | J137: =0+ZADANIOWY!O1958 -> 0 | K137: 0 | L137: 0
C138: 4590 | D138: Kary i odszkodowania wypłacane na rzecz osób fizycznych | E138: =0+ZADANIOWY!J1959 -> 0 | F138: =0+ZADANIOWY!K1959 -> 0 | G138: =0+ZADANIOWY!L1959 -> 0 | H138: =0+ZADANIOWY!M1959 -> 0 | I138: =0+ZADANIOWY!N1959 -> 0 | J138: =0+ZADANIOWY!O1959 -> 0 | K138: 0 | L138: 0
C139: 4600 | D139: Kary, odszkodowania i grzywny wypłacane na rzecz osób prawnych i innych jednostek organizacyjnych | E139: =0 -> 0 | F139: =0 -> 0 | G139: =0 -> 0 | H139: =0 -> 0 | I139: =0 -> 0 | J139: =0 -> 0 | K139: 0 | L139: 0
C140: 4610 | D140: Koszty postępowania sądowego i prokuratorskiego | E140: =0+ZADANIOWY!J1960 -> 0 | F140: =0+ZADANIOWY!K1960 -> 0 | G140: =0+ZADANIOWY!L1960 -> 0 | H140: =0+ZADANIOWY!M1960 -> 0 | I140: =0+ZADANIOWY!N1960 -> 0 | J140: =0+ZADANIOWY!O1960 -> 0 | K140: 0 | L140: 0
C141: 4680 | D141: Odsetki od nieterminowych wpłat podatku od towarów i usług (VAT) | E141: =0 -> 0 | F141: =0 -> 0 | G141: =0 -> 0 | H141: =0 -> 0 | I141: =0 -> 0 | J141: =0 -> 0 | K141: 0 | L141: 0
C142: 4700 | D142: Szkolenia pracowników niebędących członkami korpusu służby cywilnej | E142: =0+ZADANIOWY!J1961 -> 0 | F142: =0+ZADANIOWY!K1961 -> 0 | G142: =0+ZADANIOWY!L1961 -> 0 | H142: =0+ZADANIOWY!M1961 -> 0 | I142: =0+ZADANIOWY!N1961 -> 0 | J142: =0+ZADANIOWY!O1961 -> 0 | K142: 0 | L142: 0
C143: 4710 | D143: Wpłaty na PPK finansowane przez podmiot zatrudniający | E143: =0+ZADANIOWY!J1962 -> 0 | F143: =0+ZADANIOWY!K1962 -> 0 | G143: =0+ZADANIOWY!L1962 -> 0 | H143: =0+ZADANIOWY!M1962 -> 0 | I143: =0+ZADANIOWY!N1962 -> 0 | J143: =0+ZADANIOWY!O1962 -> 0 | K143: 0 | L143: 0
B144: 02095 | D144: Pozostała działalność | E144: =SUM(E145,E154) -> 0 | F144: 0 | G144: 0 | H144: 0 | I144: 0 | J144: 0 | K144: 0 | L144: 0
D145: WYDATKI BIEŻĄCE | E145: =SUM(E146,E149:E153) -> 0 | F145: 0 | G145: 0 | H145: 0 | I145: 0 | J145: 0 | K145: 0 | L145: 0
D146: Wydatki jednostek budżetowych w tym na: | E146: =SUM(E147:E148) -> 0 | F146: 0 | G146: 0 | H146: 0 | I146: 0 | J146: 0 | K146: 0 | L146: 0
D147: wynagrodzenia i składki od nich naliczane | E147: =SUM(E155:E157) -> 0 | F147: 0 | G147: 0 | H147: 0 | I147: 0 | J147: 0 | K147: 0 | L147: 0
D148: wydatki związane z realizacją ich zadań statutowych | E148: =SUM(E158:E160) -> 0 | F148: 0 | G148: 0 | H148: 0 | I148: 0 | J148: 0 | K148: 0 | L148: 0
D149: Dotacje na zadania bieżące
D150: Świadczenia na rzecz osób fizycznych
D151: Wydatki na programy finansowane z UE
D152: Obsługa długu
D153: Poręczenia i gwarancje
D154: WYDATKI MAJĄTKOWE
C155: 4110 | D155: Składki na ubezpieczenia społeczne | E155: =0 -> 0 | F155: =0 -> 0 | G155: =0 -> 0 | H155: =0 -> 0 | I155: =0 -> 0 | J155: =0 -> 0 | K155: 0 | L155: 0
C156: 4120 | D156: Składki na Fundusz Pracy oraz Fundusz Solidarnościowy | E156: =0 -> 0 | F156: =0 -> 0 | G156: =0 -> 0 | H156: =0 -> 0 | I156: =0 -> 0 | J156: =0 -> 0 | K156: 0 | L156: 0
C157: 4170 | D157: Wynagrodzenia bezosobowe | E157: =0 -> 0 | F157: =0 -> 0 | G157: =0 -> 0 | H157: =0 -> 0 | I157: =0 -> 0 | J157: =0 -> 0 | K157: =E157-G157+H157 -> 0 | L157: =F157-I157+J157 -> 0 | M157: =IF(SUM(E157:L157)>0,"Tak","") ->  | N157: =IF(SUM(G157:J157)>0,"Tak","") ->  | O157: =IF(OR(E157<F157,K157<L157,G157<I157,H157<J157),"błędny urząd","") ->  | P157: =IF(OR(E157<0,F157<0,K157<0,L157<0),"ujemny plan","") -> 
C158: 4270 | D158: Zakup usług remontowych | E158: =0 -> 0 | F158: =0 -> 0 | G158: =0 -> 0 | H158: =0 -> 0 | I158: =0 -> 0 | J158: =0 -> 0 | K158: 0 | L158: 0
C159: 4300 | D159: Zakup usług pozostałych | E159: =0 -> 0 | F159: =0 -> 0 | G159: =0 -> 0 | H159: =0 -> 0 | I159: =0 -> 0 | J159: =0 -> 0 | K159: 0 | L159: 0
C160: 4500 | D160: Pozostałe podatki na rzecz budżetów jednostek samorządu terytorialnego | E160: =0 -> 0 | F160: =0 -> 0 | G160: =0 -> 0 | H160: =0 -> 0 | I160: =0 -> 0 | J160: =0 -> 0 | K160: 0 | L160: 0
A161: 400 | D161: Wytwarzanie i zaopatrywanie w energię elektryczną, gaz i wodę | E161: =SUM(E162,E171) -> 337500 | F161: 337500 | G161: 0 | H161: 0 | I161: 0 | J161: 0 | K161: 337500 | L161: 337500 | M161: Tak
D162: WYDATKI BIEŻĄCE | E162: =SUM(E163,E166:E170) -> 337500 | F162: 337500 | G162: 0 | H162: 0 | I162: 0 | J162: 0 | K162: 337500 | L162: 337500 | M162: Tak
D163: Wydatki jednostek budżetowych w tym na: | E163: =SUM(E164:E165) -> 337500 | F163: 337500 | G163: 0 | H163: 0 | I163: 0 | J163: 0 | K163: 337500 | L163: 337500 | M163: Tak
D164: wynagrodzenia i składki od nich naliczane | E164: =SUM(E175,E190,E219) -> 0 | F164: 0 | G164: 0 | H164: 0 | I164: 0 | J164: 0 | K164: 0 | L164: 0
D165: wydatki związane z realizacją ich zadań statutowych | E165: =SUM(E176,E191,E220) -> 337500 | F165: 337500 | G165: 0 | H165: 0 | I165: 0 | J165: 0 | K165: 337500 | L165: 337500 | M165: Tak
D166: Dotacje na zadania bieżące | E166: 0 | F166: 0 | G166: 0 | H166: 0 | I166: 0 | J166: 0 | K166: 0 | L166: 0
D167: Świadczenia na rzecz osób fizycznych | E167: 0 | F167: 0 | G167: 0 | H167: 0 | I167: 0 | J167: 0 | K167: 0 | L167: 0
D168: Wydatki na programy finansowane z UE | E168: 0 | F168: 0 | G168: 0 | H168: 0 | I168: 0 | J168: 0 | K168: 0 | L168: 0
D169: Obsługa długu | E169: 0 | F169: 0 | G169: 0 | H169: 0 | I169: 0 | J169: 0 | K169: 0 | L169: 0
D170: Poręczenia i gwarancje | E170: 0 | F170: 0 | G170: 0 | H170: 0 | I170: 0 | J170: 0 | K170: 0 | L170: 0
D171: WYDATKI MAJĄTKOWE | E171: 0 | F171: 0 | G171: 0 | H171: 0 | I171: 0 | J171: 0 | K171: 0 | L171: 0
B172: 40001 | E172: =SUM(E173,E182) -> 0 | F172: 0 | G172: 0 | H172: 0 | I172: 0 | J172: 0 | K172: 0 | L172: 0
D173: WYDATKI BIEŻĄCE | E173: =SUM(E174,E177:E181) -> 0 | F173: 0 | G173: 0 | H173: 0 | I173: 0 | J173: 0 | K173: 0 | L173: 0
D174: Wydatki jednostek budżetowych w tym na: | E174: =SUM(E175:E176) -> 0 | F174: 0 | G174: 0 | H174: 0 | I174: 0 | J174: 0 | K174: 0 | L174: 0
D175: wynagrodzenia i składki od nich naliczane | E175: =SUM(E184:E186) -> 0 | F175: 0 | G175: 0 | H175: 0 | I175: 0 | J175: 0 | K175: 0 | L175: 0
D176: wydatki związane z realizacją ich zadań statutowych | E176: =SUM(E183) -> 0 | F176: 0 | G176: 0 | H176: 0 | I176: 0 | J176: 0 | K176: 0 | L176: 0
D177: Dotacje na zadania bieżące
D178: Świadczenia na rzecz osób fizycznych
D179: Wydatki na programy finansowane z UE
D180: Obsługa długu
D181: Poręczenia i gwarancje
D182: WYDATKI MAJĄTKOWE
C183: 2970 | E183: =0+ZADANIOWY!J2020 -> 0 | F183: =0+ZADANIOWY!K2020 -> 0 | G183: =0+ZADANIOWY!L2020 -> 0 | H183: =0+ZADANIOWY!M2020 -> 0 | I183: =0+ZADANIOWY!N2020 -> 0 | J183: =0+ZADANIOWY!O2020 -> 0 | K183: 0 | L183: 0
C184: 4010 | E184: =0+ZADANIOWY!J9079 -> 0 | F184: =0+ZADANIOWY!K9079 -> 0 | G184: =0+ZADANIOWY!L9079 -> 0 | H184: =0+ZADANIOWY!M9079 -> 0 | I184: =0+ZADANIOWY!N9079 -> 0 | J184: =0+ZADANIOWY!O9079 -> 0 | K184: 0 | L184: 0
C185: 4110 | E185: =0+ZADANIOWY!J9080 -> 0 | F185: =0+ZADANIOWY!K9080 -> 0 | G185: =0+ZADANIOWY!L9080 -> 0 | H185: =0+ZADANIOWY!M9080 -> 0 | I185: =0+ZADANIOWY!N9080 -> 0 | J185: =0+ZADANIOWY!O9080 -> 0 | K185: 0 | L185: 0
C186: 4120 | E186: =0+ZADANIOWY!J9081 -> 0 | F186: =0+ZADANIOWY!K9081 -> 0 | G186: =0+ZADANIOWY!L9081 -> 0 | H186: =0+ZADANIOWY!M9081 -> 0 | I186: =0+ZADANIOWY!N9081 -> 0 | J186: =0+ZADANIOWY!O9081 -> 0 | K186: 0 | L186: 0
B187: 40002 | D187: Dostarczanie wody | E187: =SUM(E188,E197) -> 337500 | F187: 337500 | G187: 0 | H187: 0 | I187: 0 | J187: 0 | K187: 337500 | L187: 337500 | M187: Tak
D188: WYDATKI BIEŻĄCE | E188: =SUM(E189,E192:E196) -> 337500 | F188: 337500 | G188: 0 | H188: 0 | I188: 0 | J188: 0 | K188: 337500 | L188: 337500 | M188: Tak
D189: Wydatki jednostek budżetowych w tym na: | E189: =SUM(E190:E191) -> 337500 | F189: 337500 | G189: 0 | H189: 0 | I189: 0 | J189: 0 | K189: 337500 | L189: 337500 | M189: Tak
D190: wynagrodzenia i składki od nich naliczane | E190: =SUM(E198:E200) -> 0 | F190: 0 | G190: 0 | H190: 0 | I190: 0 | J190: 0 | K190: 0 | L190: 0
D191: wydatki związane z realizacją ich zadań statutowych | E191: =SUM(E201:E213) -> 337500 | F191: 337500 | G191: 0 | H191: 0 | I191: 0 | J191: 0 | K191: 337500 | L191: 337500 | M191: Tak
D192: Dotacje na zadania bieżące
D193: Świadczenia na rzecz osób fizycznych
D194: Wydatki na programy finansowane z UE
D195: Obsługa długu
D196: Poręczenia i gwarancje
D197: WYDATKI MAJĄTKOWE | E197: =SUM(E214:E215) -> 0 | F197: 0 | G197: 0 | H197: 0 | I197: 0 | J197: 0 | K197: 0 | L197: 0
C198: 4110 | D198: Składki na ubezpieczenia społeczne | E198: =0+ZADANIOWY!J1628 -> 0 | F198: =0+ZADANIOWY!K1628 -> 0 | G198: =0+ZADANIOWY!L1628 -> 0 | H198: =0+ZADANIOWY!M1628 -> 0 | I198: =0+ZADANIOWY!N1628 -> 0 | J198: =0+ZADANIOWY!O1628 -> 0 | K198: 0 | L198: 0
C199: 4120 | D199: Składki na Fundusz Pracy oraz Fundusz Solidarnościowy | E199: =0+ZADANIOWY!J1629 -> 0 | F199: =0+ZADANIOWY!K1629 -> 0 | G199: =0+ZADANIOWY!L1629 -> 0 | H199: =0+ZADANIOWY!M1629 -> 0 | I199: =0+ZADANIOWY!N1629 -> 0 | J199: =0+ZADANIOWY!O1629 -> 0 | K199: 0 | L199: 0
C200: 4170 | D200: Wynagrodzenia bezosobowe | E200: =0+ZADANIOWY!J1630 -> 0 | F200: =0+ZADANIOWY!K1630 -> 0 | G200: =0+ZADANIOWY!L1630 -> 0 | H200: =0+ZADANIOWY!M1630 -> 0 | I200: =0+ZADANIOWY!N1630 -> 0 | J200: =0+ZADANIOWY!O1630 -> 0 | K200: 0 | L200: 0
C201: 4210 | D201: Zakup materiałów i wyposażenia | E201: =0+ZADANIOWY!J1631 -> 0 | F201: =0+ZADANIOWY!K1631 -> 0 | G201: =0+ZADANIOWY!L1631 -> 0 | H201: =0+ZADANIOWY!M1631 -> 0 | I201: =0+ZADANIOWY!N1631 -> 0 | J201: =0+ZADANIOWY!O1631 -> 0 | K201: 0 | L201: 0
... 4299 more rows

Sheet majatkowe
J1: Załącznik 3 do uchwały Nr XIII/96/2025 Rady Dzielnicy Białołęka m.st. Warszawy z dnia 16 kwietnia 2025 r.
A5: WNIOSEK W SPRAWIE ZMIAN W PLANIE WYDATKÓW MAJĄTKOWYCH
A6: Stanowisko finansowe | C6: Pozycje finansowe | F6: Obszar funkcjonalny | G6: Program budżetowy | I6: Plan | J6: Wykonanie wg stanu na dzień | K6: Proponowane zmiany | M6: Plan po zmianach
A7: Nazwa dysponenta ** | B7: Kod dysponenta | C7: Dział | D7: rozdział | E7: § | F7: Kod | G7: Nazwa | H7: Kod | K7: zmniejszenia | L7: zwiększenia
A10: Wydział Inwestycji Drogowych | B10: U.02.000 | C10: 600.60016.6050 | F10: GMMW | G10: Budowa ul. Warzelniczej na odcinku od ul. Hemara do posesji nr 18B | H10: C/BIA/I/P2/98 | I10: 1175490 | K10: 328940 | M10: =I10-K10+L10 -> 846550
A11: Wydział Inwestycji Drogowych | B11: U.02.000 | C11: 600.60016.6050 | F11: DE/02/0005 | G11: Budowa ul. Warzelniczej na odcinku od ul. Hemara do posesji nr 18B | H11: C/BIA/I/P2/98 | I11: 641904 | M11: 641904
A12: Wydział Inwestycji Drogowych | B12: U.02.000 | C12: 600.60016.6050 | F12: GMMW | G12: Budowa chodnika wzduż Chudoby na odc. pętla autobusowa - Słonecznego Poranka | I12: 0 | L12: 10000 | M12: 10000
A13: Wydział Inwestycji Drogowych | B13: U.02.000 | C13: 600.60016.6050 | F13: GMMW | G13: Budowa chodnika w ulicy Kaczorowej | I13: 0 | L13: 10000 | M13: 10000
A14: Wydział Inwestycji Drogowych | B14: U.02.000 | C14: 600.60016.6050 | F14: GMMW | G14: Rozbudowa pętli autobusowej Olesin | I14: 0 | L14: 10000 | M14: 10000
A15: Wydział Ochrony Śrdowiska | B15: U.02.000 | C15: 900.90095.6050 | F15: BO/25/02/0058 | G15: Ławki bujane i kosze na śmieci | I15: 0 | L15: 169500 | M15: =I15-K15+L15 -> 169500
A16: Wydział Inwestycji | B16: U.02.000 | C16: 801.80101.6050 | F16: GMMW | G16: Modernizacja sali gimnastycznej w Szkole Podstawowej nr 110 przy ul. Bohaterów 41 | H16: C/BIA/V/P1/59 | I16: 877860 | L16: 110735 | M16: 988595
A17: Wydział Inwestycji | B17: U.02.000 | C17: 801.80101.6050 | F17: EDUK | G17: Modernizacja sali gimnastycznej w Szkole Podstawowej nr 110 przy ul. Bohaterów 41 | H17: C/BIA/V/P1/59 | I17: 500000 | M17: 500000
A18: Wydział Inwestycji | B18: U.02.000 | C18: 801.80101.6050 | F18: GMMW | G18: Modernizacja boiska wraz z bieżnią przy Szkole Podstawowej nr 112 przy ul. Zaułek | H18: C/BIA/V/P1/64 | I18: 1647898 | K18: 110735 | M18: 1537163
A19: Dzielnicowe Biuro Finansów Oświaty | B19: J.02.000 | C19: 801.80101.6060 | F19: GMMW | G19: Zakupy inwestycyjne dla szkół podstawowych | I19: 0 | L19: 40000 | M19: 40000
A20: RAZEM | I20: =SUM(I10:I19) -> 4843152 | J20: =SUM(J10:J19) -> 0 | K20: =SUM(K10:K19) -> 439675 | L20: =SUM(L10:L19) -> 350235 | M20: =SUM(M10:M19) -> 4753712
F8921: =majatkowe!#REF! -> 
